{"text_format":"1","workbook":"xlsx","n_sheets":3,"sheets":["PORCENTAJE","CONTROL CALIDAD","rptDeteccionMensual (14)"],"not_rendered":{"charts":0,"images":0,"macros":0,"external_links":0,"defined_names":1,"comments":0,"pivot_tables":14},"unopened":[],"bounds":{"document_bytes":16777216,"sheet_cells":100000,"rows_first":2000,"rows_last":500,"rows_between":2000,"halvings":0,"cell_chars":16384,"cell_head_chars":4096},"cells_cut":0,"cells_raw":0,"read":"whole","date_system":"1900"}

{"sheet":"PORCENTAJE","index":0,"n_rows":614,"n_cols":36,"rows_kept":614,"cut":false,"hidden":false,"merged":[]}
[]
[]
["Suma",null,null,"Indicador",null,null,null,null,null,null,null,null,"Etiquetas de columna"]
["Red","Micro Red","Establecimiento de Salud","ATENCMY15A","SREx","SRExBK(+)","SRI","%BK(+)/SRI","MES",null,null,null,1,null,null,2,null,null,3,null,null,4,null,null,5,null,null,6,null,null,7,null,null,8]
["CANAS-CANCHIS-ESPINAR","COMBAPATA","CHECACUPE",1315,23,0,23,{"$f":"IFERROR(F5/G5,0)","v":0},1,null,null,"Etiquetas de fila","Suma de SRI","Suma de SRExBK(+)","Suma de %","Suma de SRI","Suma de SRExBK(+)","Suma de %","Suma de SRI","Suma de SRExBK(+)","Suma de %","Suma de SRI","Suma de SRExBK(+)","Suma de %","Suma de SRI","Suma de SRExBK(+)","Suma de %","Suma de SRI","Suma de SRExBK(+)","Suma de %","Suma de SRI","Suma de SRExBK(+)","Suma de %","Suma de SRI","Suma de SRExBK(+)","Suma de %"]
["CANAS-CANCHIS-ESPINAR","COMBAPATA","CHIARA",498,6,0,6,{"$f":"IFERROR(F6/G6,0)","v":0},1,null,null,"CANAS-CANCHIS-ESPINAR",1111,0,0,1339,3,2.2404779686333084E-3,3104,1,3.2216494845360824E-4,2319,1,4.3122035360068997E-4,2711,2,7.377351530800443E-4,2923,1,3.4211426616489907E-4,2535,2,7.8895463510848124E-4,2598,2,7.6982294072363352E-4]
["CANAS-CANCHIS-ESPINAR","COMBAPATA","COMBAPATA CANCHIS",2581,85,0,85,0,1,null,null,"COMBAPATA",174,0,0,174,2,1.1494252873563218E-2,523,0,0,414,1,2.4154589371980675E-3,531,0,0,366,0,0,361,1,2.7700831024930748E-3,297,2,6.7340067340067337E-3]
["CANAS-CANCHIS-ESPINAR","COMBAPATA","MOSOCLLACTA",685,14,0,14,0,1,null,null,"CHECACUPE",23,0,0,35,2,5.7142857142857141E-2,80,0,0,99,0,0,139,0,0,50,0,0,75,0,0,14,0,0]
["CANAS-CANCHIS-ESPINAR","COMBAPATA","PITUMARCA",1315,23,0,23,0,1,null,null,"CHIARA",6,0,0,9,0,0,38,0,0,4,0,0,42,0,0,8,0,0,59,0,0,20,1,0.05]
["CANAS-CANCHIS-ESPINAR","COMBAPATA","TINTA",1659,23,0,23,0,1,null,null,"COMBAPATA CANCHIS",85,0,0,32,0,0,187,0,0,148,1,6.7567567567567571E-3,129,0,0,112,0,0,64,0,0,115,0,0]
["CANAS-CANCHIS-ESPINAR","EL DESCANSO","CHECCA",886,38,0,38,0,1,null,null,"MOSOCLLACTA",14,0,0,7,0,0,28,0,0,36,0,0,28,0,0,9,0,0,33,0,0,14,0,0]
["CANAS-CANCHIS-ESPINAR","EL DESCANSO","CHITIBAMBA",116,19,0,19,0,1,null,null,"PITUMARCA",23,0,0,76,0,0,126,0,0,81,0,0,135,0,0,137,0,0,74,0,0,110,1,9.0909090909090905E-3]
["CANAS-CANCHIS-ESPINAR","EL DESCANSO","EL DESCANSO",1141,38,0,38,0,1,null,null,"TINTA",23,0,0,15,0,0,64,0,0,46,0,0,58,0,0,50,0,0,56,1,1.7857142857142856E-2,24,0,0]
["CANAS-CANCHIS-ESPINAR","ESTABLECIMIENTO QUE NO PERTENECE A NINGUNA MICRORED","ESPINAR",4915,0,0,0,0,1,null,null,"EL DESCANSO",95,0,0,90,0,0,197,0,0,108,0,0,195,0,0,270,0,0,180,0,0,158,0,0]
["CANAS-CANCHIS-ESPINAR","ESTABLECIMIENTO QUE NO PERTENECE A NINGUNA MICRORED","SICUANI",12736,63,0,63,0,1,null,null,"CHECCA",38,0,0,21,0,0,111,0,0,32,0,0,107,0,0,164,0,0,115,0,0,129,0,0]
["CANAS-CANCHIS-ESPINAR","PAMPAPHALLA","LA FLORIDA",973,45,0,45,0,1,null,null,"CHITIBAMBA",19,0,0,13,0,0,19,0,0,14,0,0,17,0,0,23,0,0,10,0,0,29,0,0]
["CANAS-CANCHIS-ESPINAR","PAMPAPHALLA","PAMPAPHALLA",4257,68,0,68,0,1,null,null,"EL DESCANSO",38,0,0,56,0,0,67,0,0,62,0,0,71,0,0,83,0,0,55,0,0,null,null,{"$error":"#DIV/0!"}]
["CANAS-CANCHIS-ESPINAR","PAMPAPHALLA","PHINAYA",263,14,0,14,0,1,null,null,"ESTABLECIMIENTO QUE NO PERTENECE A NINGUNA MICRORED",63,0,0,54,0,0,342,0,0,239,0,0,281,0,0,268,0,0,241,0,0,288,0,0]
["CANAS-CANCHIS-ESPINAR","PAMPAPHALLA","QUEHUAR",714,24,0,24,0,1,null,null,"ESPINAR",0,0,{"$error":"#DIV/0!"},3,0,0,66,0,0,3,0,0,19,0,0,16,0,0,3,0,0,19,0,0]
["CANAS-CANCHIS-ESPINAR","PAMPAPHALLA","SAN PABLO CANCHIS",696,21,0,21,0,1,null,null,"SICUANI",63,0,0,51,0,0,276,0,0,236,0,0,262,0,0,252,0,0,238,0,0,269,0,0]
["CANAS-CANCHIS-ESPINAR","PAMPAPHALLA","SAN PEDRO CANCHIS",927,10,0,10,0,1,null,null,"PAMPAPHALLA",228,0,0,345,1,2.8985507246376812E-3,508,0,0,527,0,0,486,2,4.11522633744856E-3,534,1,1.8726591760299626E-3,631,0,0,527,0,0]
["CANAS-CANCHIS-ESPINAR","PAMPAPHALLA","SANTA BARBARA",424,27,0,27,0,1,null,null,"LA FLORIDA",45,0,0,40,0,0,83,0,0,80,0,0,74,0,0,80,0,0,96,0,0,102,0,0]
["CANAS-CANCHIS-ESPINAR","PAMPAPHALLA","UZCUPATA",309,19,0,19,0,1,null,null,"PAMPAPHALLA",68,0,0,124,1,8.0645161290322578E-3,178,0,0,213,0,0,184,0,0,228,0,0,359,0,0,239,0,0]
["CANAS-CANCHIS-ESPINAR","TECHO OBRERO","CCUYO",485,20,0,20,0,1,null,null,"PHINAYA",14,0,0,20,0,0,15,0,0,21,0,0,21,0,0,18,0,0,17,0,0,15,0,0]
["CANAS-CANCHIS-ESPINAR","TECHO OBRERO","CHECTUYOC",416,6,0,6,0,1,null,null,"QUEHUAR",24,0,0,29,0,0,21,0,0,27,0,0,51,0,0,31,0,0,34,0,0,39,0,0]
["CANAS-CANCHIS-ESPINAR","TECHO OBRERO","CONDEVILUYO",307,10,0,10,0,1,null,null,"SAN PABLO CANCHIS",21,0,0,64,0,0,78,0,0,43,0,0,35,1,2.8571428571428571E-2,53,1,1.8867924528301886E-2,43,0,0,42,0,0]
["CANAS-CANCHIS-ESPINAR","TECHO OBRERO","HERCCA",499,25,0,25,0,1,null,null,"SAN PEDRO CANCHIS",10,0,0,27,0,0,32,0,0,102,0,0,58,0,0,54,0,0,41,0,0,18,0,0]
["CANAS-CANCHIS-ESPINAR","TECHO OBRERO","LANGUI",863,33,0,33,0,1,null,null,"SANTA BARBARA",27,0,0,26,0,0,74,0,0,26,0,0,37,1,2.7027027027027029E-2,27,0,0,19,0,0,36,0,0]
["CANAS-CANCHIS-ESPINAR","TECHO OBRERO","LAYO",1692,59,0,59,0,1,null,null,"UZCUPATA",19,0,0,15,0,0,27,0,0,15,0,0,26,0,0,43,0,0,22,0,0,36,0,0]
["CANAS-CANCHIS-ESPINAR","TECHO OBRERO","MARANGANI",1531,84,0,84,0,1,null,null,"TECHO OBRERO",324,0,0,365,0,0,669,0,0,555,0,0,583,0,0,571,0,0,552,0,0,509,0,0]
["CANAS-CANCHIS-ESPINAR","TECHO OBRERO","OCCOBAMBA MARANGANI",875,18,0,18,0,1,null,null,"CCUYO",20,0,0,27,0,0,25,0,0,20,0,0,20,0,0,27,0,0,26,0,0,24,0,0]
["CANAS-CANCHIS-ESPINAR","TECHO OBRERO","TECHO OBRERO",3715,69,0,69,0,1,null,null,"CHECTUYOC",6,0,0,16,0,0,34,0,0,10,0,0,22,0,0,19,0,0,11,0,0,10,0,0]
["CANAS-CANCHIS-ESPINAR","YANAOCA","HAMPATURA",243,0,0,0,0,1,null,null,"CONDEVILUYO",10,0,0,5,0,0,23,0,0,15,0,0,15,0,0,16,0,0,16,0,0,14,0,0]
["CANAS-CANCHIS-ESPINAR","YANAOCA","HUINCHIRI",191,0,0,0,0,1,null,null,"HERCCA",25,0,0,25,0,0,29,0,0,21,0,0,16,0,0,25,0,0,24,0,0,13,0,0]
["CANAS-CANCHIS-ESPINAR","YANAOCA","PAMPAMARCA",532,0,0,0,0,1,null,null,"LANGUI",33,0,0,17,0,0,52,0,0,59,0,0,44,0,0,53,0,0,43,0,0,31,0,0]
["CANAS-CANCHIS-ESPINAR","YANAOCA","PONGOÑA",281,0,0,0,0,1,null,null,"LAYO",59,0,0,75,0,0,98,0,0,88,0,0,88,0,0,88,0,0,71,0,0,78,0,0]
["CANAS-CANCHIS-ESPINAR","YANAOCA","QUEHUE",648,1,0,1,0,1,null,null,"MARANGANI",84,0,0,119,0,0,103,0,0,87,0,0,80,0,0,72,0,0,86,0,0,82,0,0]
["CANAS-CANCHIS-ESPINAR","YANAOCA","SURIMANA",496,7,0,7,0,1,null,null,"OCCOBAMBA MARANGANI",18,0,0,17,0,0,53,0,0,39,0,0,20,0,0,32,0,0,33,0,0,30,0,0]
["CANAS-CANCHIS-ESPINAR","YANAOCA","TOCCOCCORI",195,3,0,3,0,1,null,null,"TECHO OBRERO",69,0,0,64,0,0,252,0,0,216,0,0,278,0,0,239,0,0,242,0,0,227,0,0]
["CANAS-CANCHIS-ESPINAR","YANAOCA","TUNGASUCA",578,7,0,7,0,1,null,null,"YANAOCA",25,0,0,51,0,0,259,1,3.8610038610038611E-3,94,0,0,207,0,0,473,0,0,248,0,0,315,0,0]
["CANAS-CANCHIS-ESPINAR","YANAOCA","YANAOCA",2617,7,0,7,0,1,null,null,"HAMPATURA",0,0,{"$error":"#DIV/0!"},6,0,0,3,0,0,0,0,{"$error":"#DIV/0!"},0,0,{"$error":"#DIV/0!"},45,0,0,9,0,0,22,0,0]
["CANAS-CANCHIS-ESPINAR","YAURI","ACCOCUNCA",402,13,0,13,0,1,null,null,"HUINCHIRI",0,0,{"$error":"#DIV/0!"},1,0,0,15,0,0,0,0,{"$error":"#DIV/0!"},7,0,0,18,0,0,19,0,0,0,0,{"$error":"#DIV/0!"}]
["CANAS-CANCHIS-ESPINAR","YAURI","CONDOROMA",236,10,0,10,0,1,null,null,"PAMPAMARCA",0,0,{"$error":"#DIV/0!"},1,0,0,5,0,0,6,0,0,2,0,0,44,0,0,0,0,{"$error":"#DIV/0!"},26,0,0]
["CANAS-CANCHIS-ESPINAR","YAURI","COPORAQUE",879,20,0,20,0,1,null,null,"PONGOÑA",0,0,{"$error":"#DIV/0!"},4,0,0,27,1,3.7037037037037035E-2,1,0,0,36,0,0,32,0,0,15,0,0,18,0,0]
["CANAS-CANCHIS-ESPINAR","YAURI","HUAYHUAHUASI",278,14,0,14,0,1,null,null,"QUEHUE",1,0,0,12,0,0,13,0,0,3,0,0,16,0,0,68,0,0,44,0,0,51,0,0]
["CANAS-CANCHIS-ESPINAR","YAURI","OCCORURO",368,15,0,15,0,1,null,null,"SURIMANA",7,0,0,9,0,0,11,0,0,9,0,0,12,0,0,42,0,0,27,0,0,28,0,0]
["CANAS-CANCHIS-ESPINAR","YAURI","PALLPATA",1392,11,0,11,0,1,null,null,"TOCCOCCORI",3,0,0,9,0,0,7,0,0,11,0,0,21,0,0,19,0,0,23,0,0,24,0,0]
["CANAS-CANCHIS-ESPINAR","YAURI","PICHIGUA ESPINAR",513,0,0,0,0,1,null,null,"TUNGASUCA",7,0,0,2,0,0,9,0,0,6,0,0,15,0,0,50,0,0,12,0,0,null,null,{"$error":"#DIV/0!"}]
["CANAS-CANCHIS-ESPINAR","YAURI","SAN MIGUEL",358,10,0,10,0,1,null,null,"YANAOCA",7,0,0,7,0,0,169,0,0,58,0,0,98,0,0,155,0,0,99,0,0,146,0,0]
["CANAS-CANCHIS-ESPINAR","YAURI","SUYKUTAMBO",691,33,0,33,0,1,null,null,"YAURI",202,0,0,260,0,0,606,0,0,382,0,0,428,0,0,441,0,0,322,1,3.105590062111801E-3,504,0,0]
["CANAS-CANCHIS-ESPINAR","YAURI","TINTAYA MARQUIRI",306,6,0,6,0,1,null,null,"ACCOCUNCA",13,0,0,18,0,0,1,0,0,4,0,0,28,0,0,12,0,0,14,1,7.1428571428571425E-2,16,0,0]
["CANAS-CANCHIS-ESPINAR","YAURI","URINSAYA",353,19,0,19,0,1,null,null,"CONDOROMA",10,0,0,15,0,0,15,0,0,14,0,0,20,0,0,8,0,0,14,0,0,9,0,0]
["CANAS-CANCHIS-ESPINAR","YAURI","YAURI",4418,51,0,51,0,1,null,null,"COPORAQUE",20,0,0,13,0,0,23,0,0,14,0,0,15,0,0,11,0,0,15,0,0,16,0,0]
["Suma de Feb",null,null,"Indicador",null,null,null,0,null,null,null,"HUAYHUAHUASI",14,0,0,13,0,0,27,0,0,5,0,0,27,0,0,74,0,0,17,0,0,26,0,0]
["Red","Micro Red","Establecimiento de Salud","ATENCMY15A","SREx","SRExBK(+)","SRI",0,null,null,null,"OCCORURO",15,0,0,13,0,0,20,0,0,14,0,0,9,0,0,15,0,0,8,0,0,16,0,0]
["CANAS-CANCHIS-ESPINAR","COMBAPATA","CHECACUPE",893,35,2,35,5.7142857142857141E-2,2,null,null,"PALLPATA",11,0,0,20,0,0,29,0,0,29,0,0,58,0,0,50,0,0,14,0,0,26,0,0]
["CANAS-CANCHIS-ESPINAR","COMBAPATA","CHIARA",387,9,0,9,0,2,null,null,"PICHIGUA ESPINAR",0,0,{"$error":"#DIV/0!"},33,0,0,50,0,0,32,0,0,47,0,0,30,0,0,35,0,0,50,0,0]
["CANAS-CANCHIS-ESPINAR","COMBAPATA","COMBAPATA CANCHIS",1600,32,0,32,0,2,null,null,"SAN MIGUEL",10,0,0,25,0,0,41,0,0,21,0,0,10,0,0,50,0,0,24,0,0,24,0,0]
["CANAS-CANCHIS-ESPINAR","COMBAPATA","MOSOCLLACTA",456,7,0,7,0,2,null,null,"SUYKUTAMBO",33,0,0,18,0,0,106,0,0,56,0,0,48,0,0,56,0,0,47,0,0,64,0,0]
["CANAS-CANCHIS-ESPINAR","COMBAPATA","PITUMARCA",2108,76,0,76,0,2,null,null,"TINTAYA MARQUIRI",6,0,0,21,0,0,19,0,0,9,0,0,7,0,0,11,0,0,5,0,0,47,0,0]
["CANAS-CANCHIS-ESPINAR","COMBAPATA","TINTA",1209,15,0,15,0,2,null,null,"URINSAYA",19,0,0,23,0,0,41,0,0,25,0,0,81,0,0,34,0,0,33,0,0,64,0,0]
["CANAS-CANCHIS-ESPINAR","EL DESCANSO","CHECCA",1099,21,0,21,0,2,null,null,"YAURI",51,0,0,48,0,0,234,0,0,159,0,0,78,0,0,90,0,0,96,0,0,146,0,0]
["CANAS-CANCHIS-ESPINAR","EL DESCANSO","CHITIBAMBA",232,13,0,13,0,2]
["CANAS-CANCHIS-ESPINAR","EL DESCANSO","EL DESCANSO",1308,56,0,56,0,2]
["CANAS-CANCHIS-ESPINAR","ESTABLECIMIENTO QUE NO PERTENECE A NINGUNA MICRORED","ESPINAR",3870,3,0,3,0,2]
["CANAS-CANCHIS-ESPINAR","ESTABLECIMIENTO QUE NO PERTENECE A NINGUNA MICRORED","SICUANI",7562,51,0,51,0,2]
["CANAS-CANCHIS-ESPINAR","PAMPAPHALLA","LA FLORIDA",780,40,0,40,0,2]
["CANAS-CANCHIS-ESPINAR","PAMPAPHALLA","PAMPAPHALLA",3087,124,1,124,8.0645161290322578E-3,2]
["CANAS-CANCHIS-ESPINAR","PAMPAPHALLA","PHINAYA",147,20,0,20,0,2]
["CANAS-CANCHIS-ESPINAR","PAMPAPHALLA","QUEHUAR",590,29,0,29,{"$f":"IFERROR(F70/G70,0)","v":0},2]
["CANAS-CANCHIS-ESPINAR","PAMPAPHALLA","SAN PABLO CANCHIS",752,64,0,64,0,2]
["CANAS-CANCHIS-ESPINAR","PAMPAPHALLA","SAN PEDRO CANCHIS",726,27,0,27,0,2]
["CANAS-CANCHIS-ESPINAR","PAMPAPHALLA","SANTA BARBARA",463,26,0,26,0,2]
["CANAS-CANCHIS-ESPINAR","PAMPAPHALLA","UZCUPATA",450,15,0,15,0,2]
["CANAS-CANCHIS-ESPINAR","TECHO OBRERO","CCUYO",463,27,0,27,0,2]
["CANAS-CANCHIS-ESPINAR","TECHO OBRERO","CHECTUYOC",407,16,0,16,0,2]
["CANAS-CANCHIS-ESPINAR","TECHO OBRERO","CONDEVILUYO",231,5,0,5,0,2]
["CANAS-CANCHIS-ESPINAR","TECHO OBRERO","HERCCA",469,25,0,25,0,2]
["CANAS-CANCHIS-ESPINAR","TECHO OBRERO","LANGUI",529,17,0,17,0,2]
["CANAS-CANCHIS-ESPINAR","TECHO OBRERO","LAYO",1577,75,0,75,0,2]
["CANAS-CANCHIS-ESPINAR","TECHO OBRERO","MARANGANI",1408,119,0,119,0,2]
["CANAS-CANCHIS-ESPINAR","TECHO OBRERO","OCCOBAMBA MARANGANI",642,17,0,17,0,2]
["CANAS-CANCHIS-ESPINAR","TECHO OBRERO","TECHO OBRERO",3674,64,0,64,0,2]
["CANAS-CANCHIS-ESPINAR","YANAOCA","HAMPATURA",321,6,0,6,0,2]
["CANAS-CANCHIS-ESPINAR","YANAOCA","HUINCHIRI",393,1,0,1,0,2]
["CANAS-CANCHIS-ESPINAR","YANAOCA","PAMPAMARCA",629,1,0,1,0,2]
["CANAS-CANCHIS-ESPINAR","YANAOCA","PONGOÑA",402,4,0,4,0,2]
["CANAS-CANCHIS-ESPINAR","YANAOCA","QUEHUE",537,12,0,12,0,2]
["CANAS-CANCHIS-ESPINAR","YANAOCA","SURIMANA",386,9,0,9,0,2]
["CANAS-CANCHIS-ESPINAR","YANAOCA","TOCCOCCORI",244,9,0,9,0,2]
["CANAS-CANCHIS-ESPINAR","YANAOCA","TUNGASUCA",455,2,0,2,0,2]
["CANAS-CANCHIS-ESPINAR","YANAOCA","YANAOCA",2408,7,0,7,0,2]
["CANAS-CANCHIS-ESPINAR","YAURI","ACCOCUNCA",449,18,0,18,0,2]
["CANAS-CANCHIS-ESPINAR","YAURI","CONDOROMA",426,15,0,15,0,2]
["CANAS-CANCHIS-ESPINAR","YAURI","COPORAQUE",1408,13,0,13,0,2]
["CANAS-CANCHIS-ESPINAR","YAURI","HUAYHUAHUASI",448,13,0,13,0,2]
["CANAS-CANCHIS-ESPINAR","YAURI","OCCORURO",324,13,0,13,0,2]
["CANAS-CANCHIS-ESPINAR","YAURI","PALLPATA",1395,20,0,20,0,2]
["CANAS-CANCHIS-ESPINAR","YAURI","PICHIGUA ESPINAR",685,33,0,33,0,2]
["CANAS-CANCHIS-ESPINAR","YAURI","SAN MIGUEL",264,25,0,25,0,2]
["CANAS-CANCHIS-ESPINAR","YAURI","SUYKUTAMBO",713,18,0,18,0,2]
["CANAS-CANCHIS-ESPINAR","YAURI","TINTAYA MARQUIRI",578,21,0,21,0,2]
["CANAS-CANCHIS-ESPINAR","YAURI","URINSAYA",818,23,0,23,0,2]
["CANAS-CANCHIS-ESPINAR","YAURI","YAURI",4961,48,0,48,0,2]
["Suma de Mar",null,null,"Indicador",null,null,null,0]
["Red","Micro Red","Establecimiento de Salud","ATENCMY15A","SREx","SRExBK(+)","SRI",0]
["CANAS-CANCHIS-ESPINAR","COMBAPATA","CHECACUPE",878,80,0,80,0,3]
["CANAS-CANCHIS-ESPINAR","COMBAPATA","CHIARA",443,38,0,38,0,3]
["CANAS-CANCHIS-ESPINAR","COMBAPATA","COMBAPATA CANCHIS",2221,187,0,187,0,3]
["CANAS-CANCHIS-ESPINAR","COMBAPATA","MOSOCLLACTA",440,28,0,28,0,3]
["CANAS-CANCHIS-ESPINAR","COMBAPATA","PITUMARCA",1826,126,0,126,0,3]
["CANAS-CANCHIS-ESPINAR","COMBAPATA","TINTA",1263,64,0,64,0,3]
["CANAS-CANCHIS-ESPINAR","EL DESCANSO","CHECCA",1227,111,0,111,0,3]
["CANAS-CANCHIS-ESPINAR","EL DESCANSO","CHITIBAMBA",216,19,0,19,0,3]
["CANAS-CANCHIS-ESPINAR","EL DESCANSO","EL DESCANSO",1003,67,0,67,0,3]
["CANAS-CANCHIS-ESPINAR","ESTABLECIMIENTO QUE NO PERTENECE A NINGUNA MICRORED","ESPINAR",5127,66,0,66,0,3]
["CANAS-CANCHIS-ESPINAR","ESTABLECIMIENTO QUE NO PERTENECE A NINGUNA MICRORED","SICUANI",8298,276,0,276,0,3]
["CANAS-CANCHIS-ESPINAR","PAMPAPHALLA","LA FLORIDA",797,83,0,83,0,3]
["CANAS-CANCHIS-ESPINAR","PAMPAPHALLA","PAMPAPHALLA",3534,178,0,178,0,3]
["CANAS-CANCHIS-ESPINAR","PAMPAPHALLA","PHINAYA",171,15,0,15,0,3]
["CANAS-CANCHIS-ESPINAR","PAMPAPHALLA","QUEHUAR",645,21,0,21,0,3]
["CANAS-CANCHIS-ESPINAR","PAMPAPHALLA","SAN PABLO CANCHIS",789,78,0,78,0,3]
["CANAS-CANCHIS-ESPINAR","PAMPAPHALLA","SAN PEDRO CANCHIS",918,32,0,32,0,3]
["CANAS-CANCHIS-ESPINAR","PAMPAPHALLA","SANTA BARBARA",789,74,0,74,0,3]
["CANAS-CANCHIS-ESPINAR","PAMPAPHALLA","UZCUPATA",481,27,0,27,0,3]
["CANAS-CANCHIS-ESPINAR","TECHO OBRERO","CCUYO",331,25,0,25,0,3]
["CANAS-CANCHIS-ESPINAR","TECHO OBRERO","CHECTUYOC",417,34,0,34,0,3]
["CANAS-CANCHIS-ESPINAR","TECHO OBRERO","CONDEVILUYO",232,23,0,23,0,3]
["CANAS-CANCHIS-ESPINAR","TECHO OBRERO","HERCCA",413,29,0,29,0,3]
["CANAS-CANCHIS-ESPINAR","TECHO OBRERO","LANGUI",538,52,0,52,0,3]
["CANAS-CANCHIS-ESPINAR","TECHO OBRERO","LAYO",1321,98,0,98,0,3]
["CANAS-CANCHIS-ESPINAR","TECHO OBRERO","MARANGANI",1583,103,0,103,0,3]
["CANAS-CANCHIS-ESPINAR","TECHO OBRERO","OCCOBAMBA MARANGANI",756,53,0,53,0,3]
["CANAS-CANCHIS-ESPINAR","TECHO OBRERO","TECHO OBRERO",4284,252,0,252,{"$f":"IFERROR(F134/G134,0)","v":0},3]
["CANAS-CANCHIS-ESPINAR","YANAOCA","HAMPATURA",339,3,0,3,0,3]
["CANAS-CANCHIS-ESPINAR","YANAOCA","HUINCHIRI",401,15,0,15,0,3]
["CANAS-CANCHIS-ESPINAR","YANAOCA","PAMPAMARCA",414,5,0,5,0,3]
["CANAS-CANCHIS-ESPINAR","YANAOCA","PONGOÑA",300,27,1,27,3.7037037037037035E-2,3]
["CANAS-CANCHIS-ESPINAR","YANAOCA","QUEHUE",429,13,0,13,0,3]
["CANAS-CANCHIS-ESPINAR","YANAOCA","SURIMANA",383,11,0,11,0,3]
["CANAS-CANCHIS-ESPINAR","YANAOCA","TOCCOCCORI",229,7,0,7,0,3]
["CANAS-CANCHIS-ESPINAR","YANAOCA","TUNGASUCA",736,9,0,9,0,3]
["CANAS-CANCHIS-ESPINAR","YANAOCA","YANAOCA",4179,169,0,169,0,3]
["CANAS-CANCHIS-ESPINAR","YAURI","ACCOCUNCA",322,1,0,1,0,3]
["CANAS-CANCHIS-ESPINAR","YAURI","CONDOROMA",331,15,0,15,0,3]
["CANAS-CANCHIS-ESPINAR","YAURI","COPORAQUE",961,23,0,23,0,3]
["CANAS-CANCHIS-ESPINAR","YAURI","HUAYHUAHUASI",410,27,0,27,0,3]
["CANAS-CANCHIS-ESPINAR","YAURI","OCCORURO",407,20,0,20,0,3]
["CANAS-CANCHIS-ESPINAR","YAURI","PALLPATA",1087,29,0,29,0,3]
["CANAS-CANCHIS-ESPINAR","YAURI","PICHIGUA ESPINAR",613,50,0,50,0,3]
["CANAS-CANCHIS-ESPINAR","YAURI","SAN MIGUEL",344,41,0,41,0,3]
["CANAS-CANCHIS-ESPINAR","YAURI","SUYKUTAMBO",731,106,0,106,0,3]
["CANAS-CANCHIS-ESPINAR","YAURI","TINTAYA MARQUIRI",369,19,0,19,0,3]
["CANAS-CANCHIS-ESPINAR","YAURI","URINSAYA",646,41,0,41,0,3]
["CANAS-CANCHIS-ESPINAR","YAURI","YAURI",5061,234,0,234,0,3]
["Suma de Abr",null,null,"Indicador",null,null,null,0]
["Red","Micro Red","Establecimiento de Salud","ATENCMY15A","SREx","SRExBK(+)","SRI",0]
["CANAS-CANCHIS-ESPINAR","COMBAPATA","CHECACUPE",1071,99,0,99,0,4]
["CANAS-CANCHIS-ESPINAR","COMBAPATA","CHIARA",531,4,0,4,0,4]
["CANAS-CANCHIS-ESPINAR","COMBAPATA","COMBAPATA CANCHIS",2247,148,1,148,6.7567567567567571E-3,4]
["CANAS-CANCHIS-ESPINAR","COMBAPATA","MOSOCLLACTA",570,36,0,36,0,4]
["CANAS-CANCHIS-ESPINAR","COMBAPATA","PITUMARCA",1753,81,0,81,0,4]
["CANAS-CANCHIS-ESPINAR","COMBAPATA","TINTA",1211,46,0,46,0,4]
["CANAS-CANCHIS-ESPINAR","EL DESCANSO","CHECCA",1168,32,0,32,0,4]
["CANAS-CANCHIS-ESPINAR","EL DESCANSO","CHITIBAMBA",128,14,0,14,0,4]
["CANAS-CANCHIS-ESPINAR","EL DESCANSO","EL DESCANSO",1657,62,0,62,0,4]
["CANAS-CANCHIS-ESPINAR","ESTABLECIMIENTO QUE NO PERTENECE A NINGUNA MICRORED","ESPINAR",5437,3,0,3,0,4]
["CANAS-CANCHIS-ESPINAR","ESTABLECIMIENTO QUE NO PERTENECE A NINGUNA MICRORED","SICUANI",10328,236,0,236,0,4]
["CANAS-CANCHIS-ESPINAR","PAMPAPHALLA","LA FLORIDA",779,80,0,80,0,4]
["CANAS-CANCHIS-ESPINAR","PAMPAPHALLA","PAMPAPHALLA",3597,213,0,213,0,4]
["CANAS-CANCHIS-ESPINAR","PAMPAPHALLA","PHINAYA",179,21,0,21,0,4]
["CANAS-CANCHIS-ESPINAR","PAMPAPHALLA","QUEHUAR",506,27,0,27,0,4]
["CANAS-CANCHIS-ESPINAR","PAMPAPHALLA","SAN PABLO CANCHIS",577,43,0,43,0,4]
["CANAS-CANCHIS-ESPINAR","PAMPAPHALLA","SAN PEDRO CANCHIS",901,102,0,102,0,4]
["CANAS-CANCHIS-ESPINAR","PAMPAPHALLA","SANTA BARBARA",351,26,0,26,0,4]
["CANAS-CANCHIS-ESPINAR","PAMPAPHALLA","UZCUPATA",326,15,0,15,0,4]
["CANAS-CANCHIS-ESPINAR","TECHO OBRERO","CCUYO",286,20,0,20,0,4]
["CANAS-CANCHIS-ESPINAR","TECHO OBRERO","CHECTUYOC",194,10,0,10,0,4]
["CANAS-CANCHIS-ESPINAR","TECHO OBRERO","CONDEVILUYO",227,15,0,15,0,4]
["CANAS-CANCHIS-ESPINAR","TECHO OBRERO","HERCCA",323,21,0,21,0,4]
["CANAS-CANCHIS-ESPINAR","TECHO OBRERO","LANGUI",560,59,0,59,0,4]
["CANAS-CANCHIS-ESPINAR","TECHO OBRERO","LAYO",1493,88,0,88,0,4]
["CANAS-CANCHIS-ESPINAR","TECHO OBRERO","MARANGANI",1403,87,0,87,0,4]
["CANAS-CANCHIS-ESPINAR","TECHO OBRERO","OCCOBAMBA MARANGANI",616,39,0,39,0,4]
["CANAS-CANCHIS-ESPINAR","TECHO OBRERO","TECHO OBRERO",4255,216,0,216,0,4]
["CANAS-CANCHIS-ESPINAR","YANAOCA","HAMPATURA",239,0,0,0,0,4]
["CANAS-CANCHIS-ESPINAR","YANAOCA","HUINCHIRI",167,0,0,0,0,4]
["CANAS-CANCHIS-ESPINAR","YANAOCA","PAMPAMARCA",429,6,0,6,0,4]
["CANAS-CANCHIS-ESPINAR","YANAOCA","PONGOÑA",272,1,0,1,0,4]
["CANAS-CANCHIS-ESPINAR","YANAOCA","QUEHUE",403,3,0,3,0,4]
["CANAS-CANCHIS-ESPINAR","YANAOCA","SURIMANA",316,9,0,9,0,4]
["CANAS-CANCHIS-ESPINAR","YANAOCA","TOCCOCCORI",187,11,0,11,0,4]
["CANAS-CANCHIS-ESPINAR","YANAOCA","TUNGASUCA",537,6,0,6,0,4]
["CANAS-CANCHIS-ESPINAR","YANAOCA","YANAOCA",2370,58,0,58,0,4]
["CANAS-CANCHIS-ESPINAR","YAURI","ACCOCUNCA",673,4,0,4,0,4]
["CANAS-CANCHIS-ESPINAR","YAURI","CONDOROMA",241,14,0,14,0,4]
["CANAS-CANCHIS-ESPINAR","YAURI","COPORAQUE",929,14,0,14,0,4]
["CANAS-CANCHIS-ESPINAR","YAURI","HUAYHUAHUASI",615,5,0,5,{"$f":"IFERROR(F198/G198,0)","v":0},4]
["CANAS-CANCHIS-ESPINAR","YAURI","OCCORURO",232,14,0,14,0,4]
["CANAS-CANCHIS-ESPINAR","YAURI","PALLPATA",1083,29,0,29,0,4]
["CANAS-CANCHIS-ESPINAR","YAURI","PICHIGUA ESPINAR",460,32,0,32,0,4]
["CANAS-CANCHIS-ESPINAR","YAURI","SAN MIGUEL",167,21,0,21,0,4]
["CANAS-CANCHIS-ESPINAR","YAURI","SUYKUTAMBO",673,56,0,56,0,4]
["CANAS-CANCHIS-ESPINAR","YAURI","TINTAYA MARQUIRI",237,9,0,9,0,4]
["CANAS-CANCHIS-ESPINAR","YAURI","URINSAYA",615,25,0,25,0,4]
["CANAS-CANCHIS-ESPINAR","YAURI","YAURI",5531,159,0,159,0,4]
["Suma de May",null,null,"Indicador",null,null,null,0]
["Red","Micro Red","Establecimiento de Salud","ATENCMY15A","SREx","SRExBK(+)","SRI",0]
["CANAS-CANCHIS-ESPINAR","COMBAPATA","CHECACUPE",1817,139,0,139,0,5]
["CANAS-CANCHIS-ESPINAR","COMBAPATA","CHIARA",629,42,0,42,0,5]
["CANAS-CANCHIS-ESPINAR","COMBAPATA","COMBAPATA CANCHIS",2523,129,0,129,0,5]
["CANAS-CANCHIS-ESPINAR","COMBAPATA","MOSOCLLACTA",583,28,0,28,0,5]
["CANAS-CANCHIS-ESPINAR","COMBAPATA","PITUMARCA",1726,135,0,135,0,5]
["CANAS-CANCHIS-ESPINAR","COMBAPATA","TINTA",1309,58,0,58,0,5]
["CANAS-CANCHIS-ESPINAR","EL DESCANSO","CHECCA",1710,107,0,107,0,5]
["CANAS-CANCHIS-ESPINAR","EL DESCANSO","CHITIBAMBA",294,17,0,17,0,5]
["CANAS-CANCHIS-ESPINAR","EL DESCANSO","EL DESCANSO",2148,71,0,71,0,5]
["CANAS-CANCHIS-ESPINAR","ESTABLECIMIENTO QUE NO PERTENECE A NINGUNA MICRORED","ESPINAR",5102,19,0,19,0,5]
["CANAS-CANCHIS-ESPINAR","ESTABLECIMIENTO QUE NO PERTENECE A NINGUNA MICRORED","SICUANI",9616,260,0,262,0,5]
["CANAS-CANCHIS-ESPINAR","PAMPAPHALLA","LA FLORIDA",901,74,0,74,0,5]
["CANAS-CANCHIS-ESPINAR","PAMPAPHALLA","PAMPAPHALLA",4819,184,0,184,0,5]
["CANAS-CANCHIS-ESPINAR","PAMPAPHALLA","PHINAYA",302,21,0,21,0,5]
["CANAS-CANCHIS-ESPINAR","PAMPAPHALLA","QUEHUAR",725,51,0,51,0,5]
["CANAS-CANCHIS-ESPINAR","PAMPAPHALLA","SAN PABLO CANCHIS",1031,35,1,35,2.8571428571428571E-2,5]
["CANAS-CANCHIS-ESPINAR","PAMPAPHALLA","SAN PEDRO CANCHIS",1071,58,0,58,0,5]
["CANAS-CANCHIS-ESPINAR","PAMPAPHALLA","SANTA BARBARA",410,37,1,37,2.7027027027027029E-2,5]
["CANAS-CANCHIS-ESPINAR","PAMPAPHALLA","UZCUPATA",425,26,0,26,0,5]
["CANAS-CANCHIS-ESPINAR","TECHO OBRERO","CCUYO",322,20,0,20,0,5]
["CANAS-CANCHIS-ESPINAR","TECHO OBRERO","CHECTUYOC",252,22,0,22,0,5]
["CANAS-CANCHIS-ESPINAR","TECHO OBRERO","CONDEVILUYO",198,15,0,15,0,5]
["CANAS-CANCHIS-ESPINAR","TECHO OBRERO","HERCCA",375,16,0,16,0,5]
["CANAS-CANCHIS-ESPINAR","TECHO OBRERO","LANGUI",548,44,0,44,0,5]
["CANAS-CANCHIS-ESPINAR","TECHO OBRERO","LAYO",1270,88,0,88,0,5]
["CANAS-CANCHIS-ESPINAR","TECHO OBRERO","MARANGANI",942,80,0,80,0,5]
["CANAS-CANCHIS-ESPINAR","TECHO OBRERO","OCCOBAMBA MARANGANI",322,20,0,20,0,5]
["CANAS-CANCHIS-ESPINAR","TECHO OBRERO","TECHO OBRERO",5482,278,0,278,0,5]
["CANAS-CANCHIS-ESPINAR","YANAOCA","HAMPATURA",286,0,0,0,0,5]
["CANAS-CANCHIS-ESPINAR","YANAOCA","HUINCHIRI",210,7,0,7,0,5]
["CANAS-CANCHIS-ESPINAR","YANAOCA","PAMPAMARCA",415,2,0,2,0,5]
["CANAS-CANCHIS-ESPINAR","YANAOCA","PONGOÑA",205,36,0,36,0,5]
["CANAS-CANCHIS-ESPINAR","YANAOCA","QUEHUE",403,16,0,16,0,5]
["CANAS-CANCHIS-ESPINAR","YANAOCA","SURIMANA",251,12,0,12,0,5]
["CANAS-CANCHIS-ESPINAR","YANAOCA","TOCCOCCORI",196,21,0,21,0,5]
["CANAS-CANCHIS-ESPINAR","YANAOCA","TUNGASUCA",457,15,0,15,0,5]
["CANAS-CANCHIS-ESPINAR","YANAOCA","YANAOCA",2322,98,0,98,0,5]
["CANAS-CANCHIS-ESPINAR","YAURI","ACCOCUNCA",429,28,0,28,0,5]
["CANAS-CANCHIS-ESPINAR","YAURI","CONDOROMA",253,20,0,20,0,5]
["CANAS-CANCHIS-ESPINAR","YAURI","COPORAQUE",610,15,0,15,0,5]
["CANAS-CANCHIS-ESPINAR","YAURI","HUAYHUAHUASI",475,27,0,27,0,5]
["CANAS-CANCHIS-ESPINAR","YAURI","OCCORURO",201,9,0,9,0,5]
["CANAS-CANCHIS-ESPINAR","YAURI","PALLPATA",968,58,0,58,0,5]
["CANAS-CANCHIS-ESPINAR","YAURI","PICHIGUA ESPINAR",735,47,0,47,0,5]
["CANAS-CANCHIS-ESPINAR","YAURI","SAN MIGUEL",182,10,0,10,0,5]
["CANAS-CANCHIS-ESPINAR","YAURI","SUYKUTAMBO",715,48,0,48,0,5]
["CANAS-CANCHIS-ESPINAR","YAURI","TINTAYA MARQUIRI",388,7,0,7,0,5]
["CANAS-CANCHIS-ESPINAR","YAURI","URINSAYA",651,81,0,81,0,5]
["CANAS-CANCHIS-ESPINAR","YAURI","YAURI",5203,78,0,78,0,5]
["Suma de Jun",null,null,"Indicador",null,null,null,0]
["Red","Micro Red","Establecimiento de Salud","ATENCMY15A","SREx","SRExBK(+)","SRI",0]
["CANAS-CANCHIS-ESPINAR","COMBAPATA","CHECACUPE",1259,50,0,50,0,6]
["CANAS-CANCHIS-ESPINAR","COMBAPATA","CHIARA",616,8,0,8,0,6]
["CANAS-CANCHIS-ESPINAR","COMBAPATA","COMBAPATA CANCHIS",2031,112,0,112,{"$f":"IFERROR(F262/G262,0)","v":0},6]
["CANAS-CANCHIS-ESPINAR","COMBAPATA","MOSOCLLACTA",373,9,0,9,0,6]
["CANAS-CANCHIS-ESPINAR","COMBAPATA","PITUMARCA",1761,137,0,137,0,6]
["CANAS-CANCHIS-ESPINAR","COMBAPATA","TINTA",1616,50,0,50,0,6]
["CANAS-CANCHIS-ESPINAR","EL DESCANSO","CHECCA",1987,164,0,164,0,6]
["CANAS-CANCHIS-ESPINAR","EL DESCANSO","CHITIBAMBA",425,23,0,23,0,6]
["CANAS-CANCHIS-ESPINAR","EL DESCANSO","EL DESCANSO",1548,83,0,83,0,6]
["CANAS-CANCHIS-ESPINAR","ESTABLECIMIENTO QUE NO PERTENECE A NINGUNA MICRORED","ESPINAR",3546,16,0,16,0,6]
["CANAS-CANCHIS-ESPINAR","ESTABLECIMIENTO QUE NO PERTENECE A NINGUNA MICRORED","SICUANI",10497,250,0,252,0,6]
["CANAS-CANCHIS-ESPINAR","PAMPAPHALLA","LA FLORIDA",1030,80,0,80,0,6]
["CANAS-CANCHIS-ESPINAR","PAMPAPHALLA","PAMPAPHALLA",6017,228,0,228,0,6]
["CANAS-CANCHIS-ESPINAR","PAMPAPHALLA","PHINAYA",288,18,0,18,0,6]
["CANAS-CANCHIS-ESPINAR","PAMPAPHALLA","QUEHUAR",1038,31,0,31,0,6]
["CANAS-CANCHIS-ESPINAR","PAMPAPHALLA","SAN PABLO CANCHIS",1266,53,1,53,1.8867924528301886E-2,6]
["CANAS-CANCHIS-ESPINAR","PAMPAPHALLA","SAN PEDRO CANCHIS",879,54,0,54,0,6]
["CANAS-CANCHIS-ESPINAR","PAMPAPHALLA","SANTA BARBARA",423,27,0,27,0,6]
["CANAS-CANCHIS-ESPINAR","PAMPAPHALLA","UZCUPATA",758,43,0,43,0,6]
["CANAS-CANCHIS-ESPINAR","TECHO OBRERO","CCUYO",477,27,0,27,0,6]
["CANAS-CANCHIS-ESPINAR","TECHO OBRERO","CHECTUYOC",297,19,0,19,0,6]
["CANAS-CANCHIS-ESPINAR","TECHO OBRERO","CONDEVILUYO",236,16,0,16,0,6]
["CANAS-CANCHIS-ESPINAR","TECHO OBRERO","HERCCA",350,25,0,25,0,6]
["CANAS-CANCHIS-ESPINAR","TECHO OBRERO","LANGUI",569,53,0,53,0,6]
["CANAS-CANCHIS-ESPINAR","TECHO OBRERO","LAYO",1270,88,0,88,0,6]
["CANAS-CANCHIS-ESPINAR","TECHO OBRERO","MARANGANI",1488,72,0,72,0,6]
["CANAS-CANCHIS-ESPINAR","TECHO OBRERO","OCCOBAMBA MARANGANI",839,32,0,32,0,6]
["CANAS-CANCHIS-ESPINAR","TECHO OBRERO","TECHO OBRERO",5218,239,0,239,0,6]
["CANAS-CANCHIS-ESPINAR","YANAOCA","HAMPATURA",313,45,0,45,0,6]
["CANAS-CANCHIS-ESPINAR","YANAOCA","HUINCHIRI",268,18,0,18,0,6]
["CANAS-CANCHIS-ESPINAR","YANAOCA","PAMPAMARCA",571,44,0,44,0,6]
["CANAS-CANCHIS-ESPINAR","YANAOCA","PONGOÑA",237,32,0,32,0,6]
["CANAS-CANCHIS-ESPINAR","YANAOCA","QUEHUE",1024,68,0,68,0,6]
["CANAS-CANCHIS-ESPINAR","YANAOCA","SURIMANA",590,42,0,42,0,6]
["CANAS-CANCHIS-ESPINAR","YANAOCA","TOCCOCCORI",242,19,0,19,0,6]
["CANAS-CANCHIS-ESPINAR","YANAOCA","TUNGASUCA",1041,50,0,50,0,6]
["CANAS-CANCHIS-ESPINAR","YANAOCA","YANAOCA",2630,155,0,155,0,6]
["CANAS-CANCHIS-ESPINAR","YAURI","ACCOCUNCA",463,12,0,12,0,6]
["CANAS-CANCHIS-ESPINAR","YAURI","CONDOROMA",239,8,0,8,0,6]
["CANAS-CANCHIS-ESPINAR","YAURI","COPORAQUE",794,11,0,11,0,6]
["CANAS-CANCHIS-ESPINAR","YAURI","HUAYHUAHUASI",694,74,0,74,0,6]
["CANAS-CANCHIS-ESPINAR","YAURI","OCCORURO",278,15,0,15,0,6]
["CANAS-CANCHIS-ESPINAR","YAURI","PALLPATA",1084,50,0,50,0,6]
["CANAS-CANCHIS-ESPINAR","YAURI","PICHIGUA ESPINAR",606,30,0,30,0,6]
["CANAS-CANCHIS-ESPINAR","YAURI","SAN MIGUEL",396,50,0,50,0,6]
["CANAS-CANCHIS-ESPINAR","YAURI","SUYKUTAMBO",575,56,0,56,0,6]
["CANAS-CANCHIS-ESPINAR","YAURI","TINTAYA MARQUIRI",427,11,0,11,0,6]
["CANAS-CANCHIS-ESPINAR","YAURI","URINSAYA",1195,34,0,34,0,6]
["CANAS-CANCHIS-ESPINAR","YAURI","YAURI",3474,90,0,90,0,6]
["Suma de Jul",null,null,"Indicador",null,null,null,0]
["Red","Micro Red","Establecimiento de Salud","ATENCMY15A","SREx","SRExBK(+)","SRI",0]
["CANAS-CANCHIS-ESPINAR","COMBAPATA","CHECACUPE",1038,75,0,75,0,7]
["CANAS-CANCHIS-ESPINAR","COMBAPATA","CHIARA",589,59,0,59,0,7]
["CANAS-CANCHIS-ESPINAR","COMBAPATA","COMBAPATA CANCHIS",1427,64,0,64,0,7]
["CANAS-CANCHIS-ESPINAR","COMBAPATA","MOSOCLLACTA",336,33,0,33,0,7]
["CANAS-CANCHIS-ESPINAR","COMBAPATA","PITUMARCA",1844,74,0,74,0,7]
["CANAS-CANCHIS-ESPINAR","COMBAPATA","TINTA",1894,56,1,56,1.7857142857142856E-2,7]
["CANAS-CANCHIS-ESPINAR","EL DESCANSO","CHECCA",1373,115,0,115,0,7]
["CANAS-CANCHIS-ESPINAR","EL DESCANSO","CHITIBAMBA",377,10,0,10,0,7]
["CANAS-CANCHIS-ESPINAR","EL DESCANSO","EL DESCANSO",1950,55,0,55,0,7]
["CANAS-CANCHIS-ESPINAR","ESTABLECIMIENTO QUE NO PERTENECE A NINGUNA MICRORED","ESPINAR",2974,3,0,3,0,7]
["CANAS-CANCHIS-ESPINAR","ESTABLECIMIENTO QUE NO PERTENECE A NINGUNA MICRORED","SICUANI",10461,238,0,238,0,7]
["CANAS-CANCHIS-ESPINAR","PAMPAPHALLA","LA FLORIDA",901,96,0,96,0,7]
["CANAS-CANCHIS-ESPINAR","PAMPAPHALLA","PAMPAPHALLA",6220,359,0,359,0,7]
["CANAS-CANCHIS-ESPINAR","PAMPAPHALLA","PHINAYA",199,17,0,17,0,7]
["CANAS-CANCHIS-ESPINAR","PAMPAPHALLA","QUEHUAR",584,34,0,34,0,7]
["CANAS-CANCHIS-ESPINAR","PAMPAPHALLA","SAN PABLO CANCHIS",1150,43,0,43,{"$f":"IFERROR(F326/G326,0)","v":0},7]
["CANAS-CANCHIS-ESPINAR","PAMPAPHALLA","SAN PEDRO CANCHIS",557,41,0,41,0,7]
["CANAS-CANCHIS-ESPINAR","PAMPAPHALLA","SANTA BARBARA",487,19,0,19,0,7]
["CANAS-CANCHIS-ESPINAR","PAMPAPHALLA","UZCUPATA",421,22,0,22,0,7]
["CANAS-CANCHIS-ESPINAR","TECHO OBRERO","CCUYO",385,26,0,26,0,7]
["CANAS-CANCHIS-ESPINAR","TECHO OBRERO","CHECTUYOC",232,11,0,11,0,7]
["CANAS-CANCHIS-ESPINAR","TECHO OBRERO","CONDEVILUYO",299,16,0,16,0,7]
["CANAS-CANCHIS-ESPINAR","TECHO OBRERO","HERCCA",384,24,0,24,0,7]
["CANAS-CANCHIS-ESPINAR","TECHO OBRERO","LANGUI",547,43,0,43,0,7]
["CANAS-CANCHIS-ESPINAR","TECHO OBRERO","LAYO",1144,71,0,71,0,7]
["CANAS-CANCHIS-ESPINAR","TECHO OBRERO","MARANGANI",1515,86,0,86,0,7]
["CANAS-CANCHIS-ESPINAR","TECHO OBRERO","OCCOBAMBA MARANGANI",432,33,0,33,0,7]
["CANAS-CANCHIS-ESPINAR","TECHO OBRERO","TECHO OBRERO",6965,242,0,242,0,7]
["CANAS-CANCHIS-ESPINAR","YANAOCA","HAMPATURA",471,9,0,9,0,7]
["CANAS-CANCHIS-ESPINAR","YANAOCA","HUINCHIRI",198,19,0,19,0,7]
["CANAS-CANCHIS-ESPINAR","YANAOCA","PAMPAMARCA",442,0,0,0,0,7]
["CANAS-CANCHIS-ESPINAR","YANAOCA","PONGOÑA",209,15,0,15,0,7]
["CANAS-CANCHIS-ESPINAR","YANAOCA","QUEHUE",380,44,0,44,0,7]
["CANAS-CANCHIS-ESPINAR","YANAOCA","SURIMANA",263,27,0,27,0,7]
["CANAS-CANCHIS-ESPINAR","YANAOCA","TOCCOCCORI",315,23,0,23,0,7]
["CANAS-CANCHIS-ESPINAR","YANAOCA","TUNGASUCA",548,12,0,12,0,7]
["CANAS-CANCHIS-ESPINAR","YANAOCA","YANAOCA",2592,99,0,99,0,7]
["CANAS-CANCHIS-ESPINAR","YAURI","ACCOCUNCA",331,14,1,14,7.1428571428571425E-2,7]
["CANAS-CANCHIS-ESPINAR","YAURI","CONDOROMA",328,14,0,14,0,7]
["CANAS-CANCHIS-ESPINAR","YAURI","COPORAQUE",714,15,0,15,0,7]
["CANAS-CANCHIS-ESPINAR","YAURI","HUAYHUAHUASI",339,17,0,17,0,7]
["CANAS-CANCHIS-ESPINAR","YAURI","OCCORURO",261,8,0,8,0,7]
["CANAS-CANCHIS-ESPINAR","YAURI","PALLPATA",1504,14,0,14,0,7]
["CANAS-CANCHIS-ESPINAR","YAURI","PICHIGUA ESPINAR",1117,35,0,35,0,7]
["CANAS-CANCHIS-ESPINAR","YAURI","SAN MIGUEL",342,24,0,24,0,7]
["CANAS-CANCHIS-ESPINAR","YAURI","SUYKUTAMBO",799,47,0,47,0,7]
["CANAS-CANCHIS-ESPINAR","YAURI","TINTAYA MARQUIRI",280,5,0,5,0,7]
["CANAS-CANCHIS-ESPINAR","YAURI","URINSAYA",721,33,0,33,0,7]
["CANAS-CANCHIS-ESPINAR","YAURI","YAURI",4293,96,0,96,0,7]
["Suma de Ago",null,null,"Indicador",null,null,null,0]
["Red","Micro Red","Establecimiento de Salud","ATENCMY15A","SREx","SRExBK(+)","SRI",0]
["CANAS-CANCHIS-ESPINAR","COMBAPATA","CHECACUPE",851,14,0,14,0,8]
["CANAS-CANCHIS-ESPINAR","COMBAPATA","CHIARA",437,20,1,20,0.05,8]
["CANAS-CANCHIS-ESPINAR","COMBAPATA","COMBAPATA CANCHIS",1880,115,0,115,0,8]
["CANAS-CANCHIS-ESPINAR","COMBAPATA","MOSOCLLACTA",329,14,0,14,0,8]
["CANAS-CANCHIS-ESPINAR","COMBAPATA","PITUMARCA",1769,110,1,110,9.0909090909090905E-3,8]
["CANAS-CANCHIS-ESPINAR","COMBAPATA","TINTA",1156,24,0,24,0,8]
["CANAS-CANCHIS-ESPINAR","EL DESCANSO","CHECCA",1633,129,0,129,0,8]
["CANAS-CANCHIS-ESPINAR","EL DESCANSO","CHITIBAMBA",231,29,0,29,0,8]
["CANAS-CANCHIS-ESPINAR","EL DESCANSO","EL DESCANSO",null,null,null,null,0,8]
["CANAS-CANCHIS-ESPINAR","ESTABLECIMIENTO QUE NO PERTENECE A NINGUNA MICRORED","ESPINAR",3387,19,0,19,0,8]
["CANAS-CANCHIS-ESPINAR","ESTABLECIMIENTO QUE NO PERTENECE A NINGUNA MICRORED","SICUANI",9050,267,0,269,0,8]
["CANAS-CANCHIS-ESPINAR","PAMPAPHALLA","LA FLORIDA",1082,102,0,102,0,8]
["CANAS-CANCHIS-ESPINAR","PAMPAPHALLA","PAMPAPHALLA",3370,239,0,239,0,8]
["CANAS-CANCHIS-ESPINAR","PAMPAPHALLA","PHINAYA",258,15,0,15,0,8]
["CANAS-CANCHIS-ESPINAR","PAMPAPHALLA","QUEHUAR",680,39,0,39,0,8]
["CANAS-CANCHIS-ESPINAR","PAMPAPHALLA","SAN PABLO CANCHIS",644,42,0,42,0,8]
["CANAS-CANCHIS-ESPINAR","PAMPAPHALLA","SAN PEDRO CANCHIS",810,18,0,18,0,8]
["CANAS-CANCHIS-ESPINAR","PAMPAPHALLA","SANTA BARBARA",545,36,0,36,0,8]
["CANAS-CANCHIS-ESPINAR","PAMPAPHALLA","UZCUPATA",562,36,0,36,0,8]
["CANAS-CANCHIS-ESPINAR","TECHO OBRERO","CCUYO",378,24,0,24,0,8]
["CANAS-CANCHIS-ESPINAR","TECHO OBRERO","CHECTUYOC",404,10,0,10,0,8]
["CANAS-CANCHIS-ESPINAR","TECHO OBRERO","CONDEVILUYO",223,14,0,14,0,8]
["CANAS-CANCHIS-ESPINAR","TECHO OBRERO","HERCCA",278,13,0,13,0,8]
["CANAS-CANCHIS-ESPINAR","TECHO OBRERO","LANGUI",434,31,0,31,0,8]
["CANAS-CANCHIS-ESPINAR","TECHO OBRERO","LAYO",1514,78,0,78,0,8]
["CANAS-CANCHIS-ESPINAR","TECHO OBRERO","MARANGANI",1775,82,0,82,0,8]
["CANAS-CANCHIS-ESPINAR","TECHO OBRERO","OCCOBAMBA MARANGANI",709,30,0,30,0,8]
["CANAS-CANCHIS-ESPINAR","TECHO OBRERO","TECHO OBRERO",5773,227,0,227,0,8]
["CANAS-CANCHIS-ESPINAR","YANAOCA","HAMPATURA",364,22,0,22,{"$f":"IFERROR(F390/G390,0)","v":0},8]
["CANAS-CANCHIS-ESPINAR","YANAOCA","HUINCHIRI",272,0,0,0,0,8]
["CANAS-CANCHIS-ESPINAR","YANAOCA","PAMPAMARCA",467,26,0,26,0,8]
["CANAS-CANCHIS-ESPINAR","YANAOCA","PONGOÑA",140,18,0,18,0,8]
["CANAS-CANCHIS-ESPINAR","YANAOCA","QUEHUE",701,51,0,51,0,8]
["CANAS-CANCHIS-ESPINAR","YANAOCA","SURIMANA",339,28,0,28,0,8]
["CANAS-CANCHIS-ESPINAR","YANAOCA","TOCCOCCORI",268,24,0,24,0,8]
["CANAS-CANCHIS-ESPINAR","YANAOCA","TUNGASUCA",null,null,null,null,0,8]
["CANAS-CANCHIS-ESPINAR","YANAOCA","YANAOCA",2915,146,0,146,0,8]
["CANAS-CANCHIS-ESPINAR","YAURI","ACCOCUNCA",616,16,0,16,0,8]
["CANAS-CANCHIS-ESPINAR","YAURI","CONDOROMA",170,9,0,9,0,8]
["CANAS-CANCHIS-ESPINAR","YAURI","COPORAQUE",670,16,0,16,0,8]
["CANAS-CANCHIS-ESPINAR","YAURI","HUAYHUAHUASI",550,26,0,26,0,8]
["CANAS-CANCHIS-ESPINAR","YAURI","OCCORURO",293,16,0,16,0,8]
["CANAS-CANCHIS-ESPINAR","YAURI","PALLPATA",1024,26,0,26,0,8]
["CANAS-CANCHIS-ESPINAR","YAURI","PICHIGUA ESPINAR",521,50,0,50,0,8]
["CANAS-CANCHIS-ESPINAR","YAURI","SAN MIGUEL",314,24,0,24,0,8]
["CANAS-CANCHIS-ESPINAR","YAURI","SUYKUTAMBO",868,64,0,64,0,8]
["CANAS-CANCHIS-ESPINAR","YAURI","TINTAYA MARQUIRI",494,47,0,47,0,8]
["CANAS-CANCHIS-ESPINAR","YAURI","URINSAYA",790,64,0,64,0,8]
["CANAS-CANCHIS-ESPINAR","YAURI","YAURI",4793,146,0,146,0,8]
["Suma de Sep",null,null,"Indicador",null,null,null,0]
["Red","Micro Red","Establecimiento de Salud","ATENCMY15A","SREx","SRExBK(+)","SRI",0]
["CANAS-CANCHIS-ESPINAR","COMBAPATA","CHECACUPE",849,67,0,67,0,9]
["CANAS-CANCHIS-ESPINAR","COMBAPATA","CHIARA",638,30,0,30,0,9]
["CANAS-CANCHIS-ESPINAR","COMBAPATA","COMBAPATA CANCHIS",2164,194,0,194,0,9]
["CANAS-CANCHIS-ESPINAR","COMBAPATA","MOSOCLLACTA",286,12,0,12,0,9]
["CANAS-CANCHIS-ESPINAR","COMBAPATA","PITUMARCA",1318,48,0,48,0,9]
["CANAS-CANCHIS-ESPINAR","COMBAPATA","TINTA",1125,41,0,41,0,9]
["CANAS-CANCHIS-ESPINAR","EL DESCANSO","CHECCA",1806,109,0,109,0,9]
["CANAS-CANCHIS-ESPINAR","EL DESCANSO","CHITIBAMBA",149,4,0,4,0,9]
["CANAS-CANCHIS-ESPINAR","EL DESCANSO","EL DESCANSO",1554,98,0,98,0,9]
["CANAS-CANCHIS-ESPINAR","ESTABLECIMIENTO QUE NO PERTENECE A NINGUNA MICRORED","ESPINAR",null,null,null,null,0,9]
["CANAS-CANCHIS-ESPINAR","ESTABLECIMIENTO QUE NO PERTENECE A NINGUNA MICRORED","SICUANI",null,null,null,null,0,9]
["CANAS-CANCHIS-ESPINAR","PAMPAPHALLA","LA FLORIDA",730,88,0,88,0,9]
["CANAS-CANCHIS-ESPINAR","PAMPAPHALLA","PAMPAPHALLA",3411,128,0,128,0,9]
["CANAS-CANCHIS-ESPINAR","PAMPAPHALLA","PHINAYA",222,4,0,4,0,9]
["CANAS-CANCHIS-ESPINAR","PAMPAPHALLA","QUEHUAR",null,null,null,null,0,9]
["CANAS-CANCHIS-ESPINAR","PAMPAPHALLA","SAN PABLO CANCHIS",638,30,0,30,0,9]
["CANAS-CANCHIS-ESPINAR","PAMPAPHALLA","SAN PEDRO CANCHIS",858,24,0,24,0,9]
["CANAS-CANCHIS-ESPINAR","PAMPAPHALLA","SANTA BARBARA",null,null,null,null,0,9]
["CANAS-CANCHIS-ESPINAR","PAMPAPHALLA","UZCUPATA",408,33,0,33,0,9]
["CANAS-CANCHIS-ESPINAR","TECHO OBRERO","CCUYO",299,27,0,27,0,9]
["CANAS-CANCHIS-ESPINAR","TECHO OBRERO","CHECTUYOC",335,22,0,22,0,9]
["CANAS-CANCHIS-ESPINAR","TECHO OBRERO","CONDEVILUYO",224,15,0,15,0,9]
["CANAS-CANCHIS-ESPINAR","TECHO OBRERO","HERCCA",312,25,0,25,0,9]
["CANAS-CANCHIS-ESPINAR","TECHO OBRERO","LANGUI",442,34,0,34,0,9]
["CANAS-CANCHIS-ESPINAR","TECHO OBRERO","LAYO",1264,83,0,83,0,9]
["CANAS-CANCHIS-ESPINAR","TECHO OBRERO","MARANGANI",1618,102,0,102,0,9]
["CANAS-CANCHIS-ESPINAR","TECHO OBRERO","OCCOBAMBA MARANGANI",850,39,39,39,1,9]
["CANAS-CANCHIS-ESPINAR","TECHO OBRERO","TECHO OBRERO",3991,305,0,305,0,9]
["CANAS-CANCHIS-ESPINAR","YANAOCA","HAMPATURA",null,null,null,null,0,9]
["CANAS-CANCHIS-ESPINAR","YANAOCA","HUINCHIRI",null,null,null,null,0,9]
["CANAS-CANCHIS-ESPINAR","YANAOCA","PAMPAMARCA",null,null,null,null,0,9]
["CANAS-CANCHIS-ESPINAR","YANAOCA","PONGOÑA",null,null,null,null,0,9]
["CANAS-CANCHIS-ESPINAR","YANAOCA","QUEHUE",null,null,null,null,0,9]
["CANAS-CANCHIS-ESPINAR","YANAOCA","SURIMANA",null,null,null,null,0,9]
["CANAS-CANCHIS-ESPINAR","YANAOCA","TOCCOCCORI",null,null,null,null,0,9]
["CANAS-CANCHIS-ESPINAR","YANAOCA","TUNGASUCA",null,null,null,null,0,9]
["CANAS-CANCHIS-ESPINAR","YANAOCA","YANAOCA",null,null,null,null,0,9]
["CANAS-CANCHIS-ESPINAR","YAURI","ACCOCUNCA",598,20,0,20,0,9]
["CANAS-CANCHIS-ESPINAR","YAURI","CONDOROMA",217,8,1,8,0.125,9]
["CANAS-CANCHIS-ESPINAR","YAURI","COPORAQUE",739,13,0,13,0,9]
["CANAS-CANCHIS-ESPINAR","YAURI","HUAYHUAHUASI",384,10,0,10,0,9]
["CANAS-CANCHIS-ESPINAR","YAURI","OCCORURO",264,25,0,25,{"$f":"IFERROR(F454/G454,0)","v":0},9]
["CANAS-CANCHIS-ESPINAR","YAURI","PALLPATA",2290,53,0,53,0,9]
["CANAS-CANCHIS-ESPINAR","YAURI","PICHIGUA ESPINAR",474,19,0,19,0,9]
["CANAS-CANCHIS-ESPINAR","YAURI","SAN MIGUEL",317,31,0,31,0,9]
["CANAS-CANCHIS-ESPINAR","YAURI","SUYKUTAMBO",818,33,0,33,0,9]
["CANAS-CANCHIS-ESPINAR","YAURI","TINTAYA MARQUIRI",440,10,0,10,0,9]
["CANAS-CANCHIS-ESPINAR","YAURI","URINSAYA",591,31,0,31,0,9]
["CANAS-CANCHIS-ESPINAR","YAURI","YAURI",4693,143,0,143,0,9]
["Suma de Oct",null,null,"Indicador",null,null,null,0]
["Red","Micro Red","Establecimiento de Salud","ATENCMY15A","SREx","SRExBK(+)","SRI",0]
["CANAS-CANCHIS-ESPINAR","COMBAPATA","CHECACUPE",null,null,null,null,0,10]
["CANAS-CANCHIS-ESPINAR","COMBAPATA","CHIARA",null,null,null,null,0,10]
["CANAS-CANCHIS-ESPINAR","COMBAPATA","COMBAPATA CANCHIS",null,null,null,null,0,10]
["CANAS-CANCHIS-ESPINAR","COMBAPATA","MOSOCLLACTA",null,null,null,null,0,10]
["CANAS-CANCHIS-ESPINAR","COMBAPATA","PITUMARCA",null,null,null,null,0,10]
["CANAS-CANCHIS-ESPINAR","COMBAPATA","TINTA",null,null,null,null,0,10]
["CANAS-CANCHIS-ESPINAR","EL DESCANSO","CHECCA",null,null,null,null,0,10]
["CANAS-CANCHIS-ESPINAR","EL DESCANSO","CHITIBAMBA",null,null,null,null,0,10]
["CANAS-CANCHIS-ESPINAR","EL DESCANSO","EL DESCANSO",null,null,null,null,0,10]
["CANAS-CANCHIS-ESPINAR","ESTABLECIMIENTO QUE NO PERTENECE A NINGUNA MICRORED","ESPINAR",null,null,null,null,0,10]
["CANAS-CANCHIS-ESPINAR","ESTABLECIMIENTO QUE NO PERTENECE A NINGUNA MICRORED","SICUANI",null,null,null,null,0,10]
["CANAS-CANCHIS-ESPINAR","PAMPAPHALLA","LA FLORIDA",null,null,null,null,0,10]
["CANAS-CANCHIS-ESPINAR","PAMPAPHALLA","PAMPAPHALLA",null,null,null,null,0,10]
["CANAS-CANCHIS-ESPINAR","PAMPAPHALLA","PHINAYA",null,null,null,null,0,10]
["CANAS-CANCHIS-ESPINAR","PAMPAPHALLA","QUEHUAR",null,null,null,null,0,10]
["CANAS-CANCHIS-ESPINAR","PAMPAPHALLA","SAN PABLO CANCHIS",null,null,null,null,0,10]
["CANAS-CANCHIS-ESPINAR","PAMPAPHALLA","SAN PEDRO CANCHIS",null,null,null,null,0,10]
["CANAS-CANCHIS-ESPINAR","PAMPAPHALLA","SANTA BARBARA",null,null,null,null,0,10]
["CANAS-CANCHIS-ESPINAR","PAMPAPHALLA","UZCUPATA",null,null,null,null,0,10]
["CANAS-CANCHIS-ESPINAR","TECHO OBRERO","CCUYO",null,null,null,null,0,10]
["CANAS-CANCHIS-ESPINAR","TECHO OBRERO","CHECTUYOC",null,null,null,null,0,10]
["CANAS-CANCHIS-ESPINAR","TECHO OBRERO","CONDEVILUYO",null,null,null,null,0,10]
["CANAS-CANCHIS-ESPINAR","TECHO OBRERO","HERCCA",null,null,null,null,0,10]
["CANAS-CANCHIS-ESPINAR","TECHO OBRERO","LANGUI",null,null,null,null,0,10]
["CANAS-CANCHIS-ESPINAR","TECHO OBRERO","LAYO",null,null,null,null,0,10]
["CANAS-CANCHIS-ESPINAR","TECHO OBRERO","MARANGANI",null,null,null,null,0,10]
["CANAS-CANCHIS-ESPINAR","TECHO OBRERO","OCCOBAMBA MARANGANI",null,null,null,null,0,10]
["CANAS-CANCHIS-ESPINAR","TECHO OBRERO","TECHO OBRERO",null,null,null,null,0,10]
["CANAS-CANCHIS-ESPINAR","YANAOCA","HAMPATURA",null,null,null,null,0,10]
["CANAS-CANCHIS-ESPINAR","YANAOCA","HUINCHIRI",null,null,null,null,0,10]
["CANAS-CANCHIS-ESPINAR","YANAOCA","PAMPAMARCA",null,null,null,null,0,10]
["CANAS-CANCHIS-ESPINAR","YANAOCA","PONGOÑA",null,null,null,null,0,10]
["CANAS-CANCHIS-ESPINAR","YANAOCA","QUEHUE",null,null,null,null,0,10]
["CANAS-CANCHIS-ESPINAR","YANAOCA","SURIMANA",null,null,null,null,0,10]
["CANAS-CANCHIS-ESPINAR","YANAOCA","TOCCOCCORI",null,null,null,null,0,10]
["CANAS-CANCHIS-ESPINAR","YANAOCA","TUNGASUCA",null,null,null,null,0,10]
["CANAS-CANCHIS-ESPINAR","YANAOCA","YANAOCA",null,null,null,null,0,10]
["CANAS-CANCHIS-ESPINAR","YAURI","ACCOCUNCA",null,null,null,null,0,10]
["CANAS-CANCHIS-ESPINAR","YAURI","CONDOROMA",null,null,null,null,0,10]
["CANAS-CANCHIS-ESPINAR","YAURI","COPORAQUE",null,null,null,null,0,10]
["CANAS-CANCHIS-ESPINAR","YAURI","HUAYHUAHUASI",null,null,null,null,0,10]
["CANAS-CANCHIS-ESPINAR","YAURI","OCCORURO",null,null,null,null,0,10]
["CANAS-CANCHIS-ESPINAR","YAURI","PALLPATA",null,null,null,null,0,10]
["CANAS-CANCHIS-ESPINAR","YAURI","PICHIGUA ESPINAR",null,null,null,null,0,10]
["CANAS-CANCHIS-ESPINAR","YAURI","SAN MIGUEL",null,null,null,null,0,10]
["CANAS-CANCHIS-ESPINAR","YAURI","SUYKUTAMBO",null,null,null,null,0,10]
["CANAS-CANCHIS-ESPINAR","YAURI","TINTAYA MARQUIRI",null,null,null,null,0,10]
["CANAS-CANCHIS-ESPINAR","YAURI","URINSAYA",null,null,null,null,0,10]
["CANAS-CANCHIS-ESPINAR","YAURI","YAURI",null,null,null,null,0,10]
["Suma de Nov",null,null,"Indicador",null,null,null,0]
["Red","Micro Red","Establecimiento de Salud","ATENCMY15A","SREx","SRExBK(+)","SRI",0]
["CANAS-CANCHIS-ESPINAR","COMBAPATA","CHECACUPE",null,null,null,null,0,11]
["CANAS-CANCHIS-ESPINAR","COMBAPATA","CHIARA",null,null,null,null,0,11]
["CANAS-CANCHIS-ESPINAR","COMBAPATA","COMBAPATA CANCHIS",null,null,null,null,0,11]
["CANAS-CANCHIS-ESPINAR","COMBAPATA","MOSOCLLACTA",null,null,null,null,{"$f":"IFERROR(F518/G518,0)","v":0},11]
["CANAS-CANCHIS-ESPINAR","COMBAPATA","PITUMARCA",null,null,null,null,0,11]
["CANAS-CANCHIS-ESPINAR","COMBAPATA","TINTA",null,null,null,null,0,11]
["CANAS-CANCHIS-ESPINAR","EL DESCANSO","CHECCA",null,null,null,null,0,11]
["CANAS-CANCHIS-ESPINAR","EL DESCANSO","CHITIBAMBA",null,null,null,null,0,11]
["CANAS-CANCHIS-ESPINAR","EL DESCANSO","EL DESCANSO",null,null,null,null,0,11]
["CANAS-CANCHIS-ESPINAR","ESTABLECIMIENTO QUE NO PERTENECE A NINGUNA MICRORED","ESPINAR",null,null,null,null,0,11]
["CANAS-CANCHIS-ESPINAR","ESTABLECIMIENTO QUE NO PERTENECE A NINGUNA MICRORED","SICUANI",null,null,null,null,0,11]
["CANAS-CANCHIS-ESPINAR","PAMPAPHALLA","LA FLORIDA",null,null,null,null,0,11]
["CANAS-CANCHIS-ESPINAR","PAMPAPHALLA","PAMPAPHALLA",null,null,null,null,0,11]
["CANAS-CANCHIS-ESPINAR","PAMPAPHALLA","PHINAYA",null,null,null,null,0,11]
["CANAS-CANCHIS-ESPINAR","PAMPAPHALLA","QUEHUAR",null,null,null,null,0,11]
["CANAS-CANCHIS-ESPINAR","PAMPAPHALLA","SAN PABLO CANCHIS",null,null,null,null,0,11]
["CANAS-CANCHIS-ESPINAR","PAMPAPHALLA","SAN PEDRO CANCHIS",null,null,null,null,0,11]
["CANAS-CANCHIS-ESPINAR","PAMPAPHALLA","SANTA BARBARA",null,null,null,null,0,11]
["CANAS-CANCHIS-ESPINAR","PAMPAPHALLA","UZCUPATA",null,null,null,null,0,11]
["CANAS-CANCHIS-ESPINAR","TECHO OBRERO","CCUYO",null,null,null,null,0,11]
["CANAS-CANCHIS-ESPINAR","TECHO OBRERO","CHECTUYOC",null,null,null,null,0,11]
["CANAS-CANCHIS-ESPINAR","TECHO OBRERO","CONDEVILUYO",null,null,null,null,0,11]
["CANAS-CANCHIS-ESPINAR","TECHO OBRERO","HERCCA",null,null,null,null,0,11]
["CANAS-CANCHIS-ESPINAR","TECHO OBRERO","LANGUI",null,null,null,null,0,11]
["CANAS-CANCHIS-ESPINAR","TECHO OBRERO","LAYO",null,null,null,null,0,11]
["CANAS-CANCHIS-ESPINAR","TECHO OBRERO","MARANGANI",null,null,null,null,0,11]
["CANAS-CANCHIS-ESPINAR","TECHO OBRERO","OCCOBAMBA MARANGANI",null,null,null,null,0,11]
["CANAS-CANCHIS-ESPINAR","TECHO OBRERO","TECHO OBRERO",null,null,null,null,0,11]
["CANAS-CANCHIS-ESPINAR","YANAOCA","HAMPATURA",null,null,null,null,0,11]
["CANAS-CANCHIS-ESPINAR","YANAOCA","HUINCHIRI",null,null,null,null,0,11]
["CANAS-CANCHIS-ESPINAR","YANAOCA","PAMPAMARCA",null,null,null,null,0,11]
["CANAS-CANCHIS-ESPINAR","YANAOCA","PONGOÑA",null,null,null,null,0,11]
["CANAS-CANCHIS-ESPINAR","YANAOCA","QUEHUE",null,null,null,null,0,11]
["CANAS-CANCHIS-ESPINAR","YANAOCA","SURIMANA",null,null,null,null,0,11]
["CANAS-CANCHIS-ESPINAR","YANAOCA","TOCCOCCORI",null,null,null,null,0,11]
["CANAS-CANCHIS-ESPINAR","YANAOCA","TUNGASUCA",null,null,null,null,0,11]
["CANAS-CANCHIS-ESPINAR","YANAOCA","YANAOCA",null,null,null,null,0,11]
["CANAS-CANCHIS-ESPINAR","YAURI","ACCOCUNCA",null,null,null,null,0,11]
["CANAS-CANCHIS-ESPINAR","YAURI","CONDOROMA",null,null,null,null,0,11]
["CANAS-CANCHIS-ESPINAR","YAURI","COPORAQUE",null,null,null,null,0,11]
["CANAS-CANCHIS-ESPINAR","YAURI","HUAYHUAHUASI",null,null,null,null,0,11]
["CANAS-CANCHIS-ESPINAR","YAURI","OCCORURO",null,null,null,null,0,11]
["CANAS-CANCHIS-ESPINAR","YAURI","PALLPATA",null,null,null,null,0,11]
["CANAS-CANCHIS-ESPINAR","YAURI","PICHIGUA ESPINAR",null,null,null,null,0,11]
["CANAS-CANCHIS-ESPINAR","YAURI","SAN MIGUEL",null,null,null,null,0,11]
["CANAS-CANCHIS-ESPINAR","YAURI","SUYKUTAMBO",null,null,null,null,0,11]
["CANAS-CANCHIS-ESPINAR","YAURI","TINTAYA MARQUIRI",null,null,null,null,0,11]
["CANAS-CANCHIS-ESPINAR","YAURI","URINSAYA",null,null,null,null,0,11]
["CANAS-CANCHIS-ESPINAR","YAURI","YAURI",null,null,null,null,0,11]
["Suma de Dic",null,null,"Indicador",null,null,null,0]
["Red","Micro Red","Establecimiento de Salud","ATENCMY15A","SREx","SRExBK(+)","SRI",0]
["CANAS-CANCHIS-ESPINAR","COMBAPATA","CHECACUPE",null,null,null,null,0,12]
["CANAS-CANCHIS-ESPINAR","COMBAPATA","CHIARA",null,null,null,null,0,12]
["CANAS-CANCHIS-ESPINAR","COMBAPATA","COMBAPATA CANCHIS",null,null,null,null,0,12]
["CANAS-CANCHIS-ESPINAR","COMBAPATA","MOSOCLLACTA",null,null,null,null,0,12]
["CANAS-CANCHIS-ESPINAR","COMBAPATA","PITUMARCA",null,null,null,null,0,12]
["CANAS-CANCHIS-ESPINAR","COMBAPATA","TINTA",null,null,null,null,0,12]
["CANAS-CANCHIS-ESPINAR","EL DESCANSO","CHECCA",null,null,null,null,0,12]
["CANAS-CANCHIS-ESPINAR","EL DESCANSO","CHITIBAMBA",null,null,null,null,0,12]
["CANAS-CANCHIS-ESPINAR","EL DESCANSO","EL DESCANSO",null,null,null,null,0,12]
["CANAS-CANCHIS-ESPINAR","ESTABLECIMIENTO QUE NO PERTENECE A NINGUNA MICRORED","ESPINAR",null,null,null,null,0,12]
["CANAS-CANCHIS-ESPINAR","ESTABLECIMIENTO QUE NO PERTENECE A NINGUNA MICRORED","SICUANI",null,null,null,null,0,12]
["CANAS-CANCHIS-ESPINAR","PAMPAPHALLA","LA FLORIDA",null,null,null,null,0,12]
["CANAS-CANCHIS-ESPINAR","PAMPAPHALLA","PAMPAPHALLA",null,null,null,null,0,12]
["CANAS-CANCHIS-ESPINAR","PAMPAPHALLA","PHINAYA",null,null,null,null,0,12]
["CANAS-CANCHIS-ESPINAR","PAMPAPHALLA","QUEHUAR",null,null,null,null,0,12]
["CANAS-CANCHIS-ESPINAR","PAMPAPHALLA","SAN PABLO CANCHIS",null,null,null,null,0,12]
["CANAS-CANCHIS-ESPINAR","PAMPAPHALLA","SAN PEDRO CANCHIS",null,null,null,null,{"$f":"IFERROR(F582/G582,0)","v":0},12]
["CANAS-CANCHIS-ESPINAR","PAMPAPHALLA","SANTA BARBARA",null,null,null,null,0,12]
["CANAS-CANCHIS-ESPINAR","PAMPAPHALLA","UZCUPATA",null,null,null,null,0,12]
["CANAS-CANCHIS-ESPINAR","TECHO OBRERO","CCUYO",null,null,null,null,0,12]
["CANAS-CANCHIS-ESPINAR","TECHO OBRERO","CHECTUYOC",null,null,null,null,0,12]
["CANAS-CANCHIS-ESPINAR","TECHO OBRERO","CONDEVILUYO",null,null,null,null,0,12]
["CANAS-CANCHIS-ESPINAR","TECHO OBRERO","HERCCA",null,null,null,null,0,12]
["CANAS-CANCHIS-ESPINAR","TECHO OBRERO","LANGUI",null,null,null,null,0,12]
["CANAS-CANCHIS-ESPINAR","TECHO OBRERO","LAYO",null,null,null,null,0,12]
["CANAS-CANCHIS-ESPINAR","TECHO OBRERO","MARANGANI",null,null,null,null,0,12]
["CANAS-CANCHIS-ESPINAR","TECHO OBRERO","OCCOBAMBA MARANGANI",null,null,null,null,0,12]
["CANAS-CANCHIS-ESPINAR","TECHO OBRERO","TECHO OBRERO",null,null,null,null,0,12]
["CANAS-CANCHIS-ESPINAR","YANAOCA","HAMPATURA",null,null,null,null,0,12]
["CANAS-CANCHIS-ESPINAR","YANAOCA","HUINCHIRI",null,null,null,null,0,12]
["CANAS-CANCHIS-ESPINAR","YANAOCA","PAMPAMARCA",null,null,null,null,0,12]
["CANAS-CANCHIS-ESPINAR","YANAOCA","PONGOÑA",null,null,null,null,0,12]
["CANAS-CANCHIS-ESPINAR","YANAOCA","QUEHUE",null,null,null,null,0,12]
["CANAS-CANCHIS-ESPINAR","YANAOCA","SURIMANA",null,null,null,null,0,12]
["CANAS-CANCHIS-ESPINAR","YANAOCA","TOCCOCCORI",null,null,null,null,0,12]
["CANAS-CANCHIS-ESPINAR","YANAOCA","TUNGASUCA",null,null,null,null,0,12]
["CANAS-CANCHIS-ESPINAR","YANAOCA","YANAOCA",null,null,null,null,0,12]
["CANAS-CANCHIS-ESPINAR","YAURI","ACCOCUNCA",null,null,null,null,0,12]
["CANAS-CANCHIS-ESPINAR","YAURI","CONDOROMA",null,null,null,null,0,12]
["CANAS-CANCHIS-ESPINAR","YAURI","COPORAQUE",null,null,null,null,0,12]
["CANAS-CANCHIS-ESPINAR","YAURI","HUAYHUAHUASI",null,null,null,null,0,12]
["CANAS-CANCHIS-ESPINAR","YAURI","OCCORURO",null,null,null,null,0,12]
["CANAS-CANCHIS-ESPINAR","YAURI","PALLPATA",null,null,null,null,0,12]
["CANAS-CANCHIS-ESPINAR","YAURI","PICHIGUA ESPINAR",null,null,null,null,0,12]
["CANAS-CANCHIS-ESPINAR","YAURI","SAN MIGUEL",null,null,null,null,0,12]
["CANAS-CANCHIS-ESPINAR","YAURI","SUYKUTAMBO",null,null,null,null,0,12]
["CANAS-CANCHIS-ESPINAR","YAURI","TINTAYA MARQUIRI",null,null,null,null,0,12]
["CANAS-CANCHIS-ESPINAR","YAURI","URINSAYA",null,null,null,null,0,12]
["CANAS-CANCHIS-ESPINAR","YAURI","YAURI",null,null,null,null,0,12]

{"sheet":"CONTROL CALIDAD","index":1,"n_rows":53,"n_cols":15,"rows_kept":53,"cut":false,"hidden":false,"merged":[]}
[]
[]
["Micro Red","Establecimiento de Salud","Indicador","Suma de Ene","Suma de Feb","Suma de Mar","Suma de Abr","Suma de May","Suma de Jun","Suma de Jul","Suma de Ago","Suma de Sep","Suma de Oct","Suma de Nov","Suma de Dic"]
["COMBAPATA","CHECACUPE","ATENCMY15A",1315,893,878,1071,1817,1259,1038,851,849]
["COMBAPATA","CHIARA","ATENCMY15A",498,387,443,531,629,616,589,437,638]
["COMBAPATA","COMBAPATA CANCHIS","ATENCMY15A",2581,1600,2221,2247,2523,2031,1427,1880,2164]
["COMBAPATA","MOSOCLLACTA","ATENCMY15A",685,456,440,570,583,373,336,329,286]
["COMBAPATA","PITUMARCA","ATENCMY15A",1315,2108,1826,1753,1726,1761,1844,1769,1318]
["COMBAPATA","TINTA","ATENCMY15A",1659,1209,1263,1211,1309,1616,1894,1156,1125]
["EL DESCANSO","CHECCA","ATENCMY15A",886,1099,1227,1168,1710,1987,1373,1633,1806]
["EL DESCANSO","CHITIBAMBA","ATENCMY15A",116,232,216,128,294,425,377,231,149]
["EL DESCANSO","EL DESCANSO","ATENCMY15A",1141,1308,1003,1657,2148,1548,1950,null,1554]
["ESTABLECIMIENTO QUE NO PERTENECE A NINGUNA MICRORED","ESPINAR","ATENCMY15A",4915,3870,5127,5437,5102,3546,2974,3387]
["ESTABLECIMIENTO QUE NO PERTENECE A NINGUNA MICRORED","SICUANI","ATENCMY15A",12736,7562,8298,10328,9616,10497,10461,9050]
["PAMPAPHALLA","LA FLORIDA","ATENCMY15A",973,780,797,779,901,1030,901,1082,730]
["PAMPAPHALLA","PAMPAPHALLA","ATENCMY15A",4257,3087,3534,3597,4819,6017,6220,3370,3411]
["PAMPAPHALLA","PHINAYA","ATENCMY15A",263,147,171,179,302,288,199,258,222]
["PAMPAPHALLA","QUEHUAR","ATENCMY15A",714,590,645,506,725,1038,584,680]
["PAMPAPHALLA","SAN PABLO CANCHIS","ATENCMY15A",696,752,789,577,1031,1266,1150,644,638]
["PAMPAPHALLA","SAN PEDRO CANCHIS","ATENCMY15A",927,726,918,901,1071,879,557,810,858]
["PAMPAPHALLA","SANTA BARBARA","ATENCMY15A",424,463,789,351,410,423,487,545]
["PAMPAPHALLA","UZCUPATA","ATENCMY15A",309,450,481,326,425,758,421,562,408]
["TECHO OBRERO","CCUYO","ATENCMY15A",485,463,331,286,322,477,385,378,299]
["TECHO OBRERO","CHECTUYOC","ATENCMY15A",416,407,417,194,252,297,232,404,335]
["TECHO OBRERO","CONDEVILUYO","ATENCMY15A",307,231,232,227,198,236,299,223,224]
["TECHO OBRERO","HERCCA","ATENCMY15A",499,469,413,323,375,350,384,278,312]
["TECHO OBRERO","LANGUI","ATENCMY15A",863,529,538,560,548,569,547,434,442]
["TECHO OBRERO","LAYO","ATENCMY15A",1692,1577,1321,1493,1270,1270,1144,1514,1264]
["TECHO OBRERO","MARANGANI","ATENCMY15A",1531,1408,1583,1403,942,1488,1515,1775,1618]
["TECHO OBRERO","OCCOBAMBA MARANGANI","ATENCMY15A",875,642,756,616,322,839,432,709,850]
["TECHO OBRERO","TECHO OBRERO","ATENCMY15A",3715,3674,4284,4255,5482,5218,6965,5773,3991]
["YANAOCA","HAMPATURA","ATENCMY15A",243,321,339,239,286,313,471,364]
["YANAOCA","HUINCHIRI","ATENCMY15A",191,393,401,167,210,268,198,272]
["YANAOCA","PAMPAMARCA","ATENCMY15A",532,629,414,429,415,571,442,467]
["YANAOCA","PONGOÑA","ATENCMY15A",281,402,300,272,205,237,209,140]
["YANAOCA","QUEHUE","ATENCMY15A",648,537,429,403,403,1024,380,701]
["YANAOCA","SURIMANA","ATENCMY15A",496,386,383,316,251,590,263,339]
["YANAOCA","TOCCOCCORI","ATENCMY15A",195,244,229,187,196,242,315,268]
["YANAOCA","TUNGASUCA","ATENCMY15A",578,455,736,537,457,1041,548]
["YANAOCA","YANAOCA","ATENCMY15A",2617,2408,4179,2370,2322,2630,2592,2915]
["YAURI","ACCOCUNCA","ATENCMY15A",402,449,322,673,429,463,331,616,598]
["YAURI","CONDOROMA","ATENCMY15A",236,426,331,241,253,239,328,170,217]
["YAURI","COPORAQUE","ATENCMY15A",879,1408,961,929,610,794,714,670,739]
["YAURI","HUAYHUAHUASI","ATENCMY15A",278,448,410,615,475,694,339,550,384]
["YAURI","OCCORURO","ATENCMY15A",368,324,407,232,201,278,261,293,264]
["YAURI","PALLPATA","ATENCMY15A",1392,1395,1087,1083,968,1084,1504,1024,2290]
["YAURI","PICHIGUA ESPINAR","ATENCMY15A",513,685,613,460,735,606,1117,521,474]
["YAURI","SAN MIGUEL","ATENCMY15A",358,264,344,167,182,396,342,314,317]
["YAURI","SUYKUTAMBO","ATENCMY15A",691,713,731,673,715,575,799,868,818]
["YAURI","TINTAYA MARQUIRI","ATENCMY15A",306,578,369,237,388,427,280,494,440]
["YAURI","URINSAYA","ATENCMY15A",353,818,646,615,651,1195,721,790,591]
["YAURI","YAURI","ATENCMY15A",4418,4961,5061,5531,5203,3474,4293,4793,4693]
["Total general",null,null,62768,55363,59633,59050,62407,65243,63132,56731,37316]

{"sheet":"rptDeteccionMensual (14)","index":2,"n_rows":202,"n_cols":24,"rows_kept":202,"cut":false,"hidden":false,"merged":[[0,0,0,17],[2,2,2,11]]}
["REPORTE DE DATOS CONSOLIDADOS MENSUALES DE DETECCIÓN SRI/SRE/SREBKP Y ATENCIONES EN MENORES DE 15 A. "]
["INSTITUCION",":","MINSA","DISA",":","CUSCO","RED",":","CANAS-CANCHIS-ESPINAR","MICRORED",":","MICROREDES DE LA RED"]
["ESTABLECIMIENTO",":","ESTABLECIMIENTOS DE LA MICRORED"]
["AÑO",":",2022]
[]
["Institucion","DISA/DIRESA","Red","Micro Red","Cod. Renaes","Establecimiento de Salud","Unidad Ejecutora","UBIGEO EESS","Departamento EESS","Provincia EESS","Distrito EESS","Indicador","Ene","Feb","Mar","Abr","May","Jun","Jul","Ago","Sep","Oct","Nov","Dic"]
["MINSA","CUSCO","CANAS-CANCHIS-ESPINAR","COMBAPATA",2320,"MOSOCLLACTA",null,80204,"CUSCO","ACOMAYO","MOSOC LLACTA","SRI",14,7,28,36,28,9,33,14,12]
["MINSA","CUSCO","CANAS-CANCHIS-ESPINAR","COMBAPATA",2320,"MOSOCLLACTA",null,80204,"CUSCO","ACOMAYO","MOSOC LLACTA","SREx",14,7,28,36,28,9,33,14,12]
["MINSA","CUSCO","CANAS-CANCHIS-ESPINAR","COMBAPATA",2320,"MOSOCLLACTA",null,80204,"CUSCO","ACOMAYO","MOSOC LLACTA","SRExBK(+)",0,0,0,0,0,0,0,0,0]
["MINSA","CUSCO","CANAS-CANCHIS-ESPINAR","COMBAPATA",2320,"MOSOCLLACTA",null,80204,"CUSCO","ACOMAYO","MOSOC LLACTA","ATENCMY15A",685,456,440,570,583,373,336,329,286]
["MINSA","CUSCO","CANAS-CANCHIS-ESPINAR","COMBAPATA",2385,"CHECACUPE",null,80602,"CUSCO","CANCHIS","CHECACUPE","SRI",23,35,80,99,139,50,75,14,67]
["MINSA","CUSCO","CANAS-CANCHIS-ESPINAR","COMBAPATA",2385,"CHECACUPE",null,80602,"CUSCO","CANCHIS","CHECACUPE","SREx",23,35,80,99,139,50,75,14,67]
["MINSA","CUSCO","CANAS-CANCHIS-ESPINAR","COMBAPATA",2385,"CHECACUPE",null,80602,"CUSCO","CANCHIS","CHECACUPE","SRExBK(+)",0,2,0,0,0,0,0,0,0]
["MINSA","CUSCO","CANAS-CANCHIS-ESPINAR","COMBAPATA",2385,"CHECACUPE",null,80602,"CUSCO","CANCHIS","CHECACUPE","ATENCMY15A",1315,893,878,1071,1817,1259,1038,851,849]
["MINSA","CUSCO","CANAS-CANCHIS-ESPINAR","COMBAPATA",2386,"COMBAPATA CANCHIS",null,80603,"CUSCO","CANCHIS","COMBAPATA","SRI",85,32,187,148,129,112,64,115,194]
["MINSA","CUSCO","CANAS-CANCHIS-ESPINAR","COMBAPATA",2386,"COMBAPATA CANCHIS",null,80603,"CUSCO","CANCHIS","COMBAPATA","SREx",85,32,187,148,129,112,64,115,194]
["MINSA","CUSCO","CANAS-CANCHIS-ESPINAR","COMBAPATA",2386,"COMBAPATA CANCHIS",null,80603,"CUSCO","CANCHIS","COMBAPATA","SRExBK(+)",0,0,0,1,0,0,0,0,0]
["MINSA","CUSCO","CANAS-CANCHIS-ESPINAR","COMBAPATA",2386,"COMBAPATA CANCHIS",null,80603,"CUSCO","CANCHIS","COMBAPATA","ATENCMY15A",2581,1600,2221,2247,2523,2031,1427,1880,2164]
["MINSA","CUSCO","CANAS-CANCHIS-ESPINAR","COMBAPATA",2387,"CHIARA",null,80603,"CUSCO","CANCHIS","COMBAPATA","SRI",6,9,38,4,42,8,59,20,30]
["MINSA","CUSCO","CANAS-CANCHIS-ESPINAR","COMBAPATA",2387,"CHIARA",null,80603,"CUSCO","CANCHIS","COMBAPATA","SREx",6,9,38,4,42,8,59,20,30]
["MINSA","CUSCO","CANAS-CANCHIS-ESPINAR","COMBAPATA",2387,"CHIARA",null,80603,"CUSCO","CANCHIS","COMBAPATA","SRExBK(+)",0,0,0,0,0,0,0,1,0]
["MINSA","CUSCO","CANAS-CANCHIS-ESPINAR","COMBAPATA",2387,"CHIARA",null,80603,"CUSCO","CANCHIS","COMBAPATA","ATENCMY15A",498,387,443,531,629,616,589,437,638]
["MINSA","CUSCO","CANAS-CANCHIS-ESPINAR","COMBAPATA",2392,"PITUMARCA",null,80605,"CUSCO","CANCHIS","PITUMARCA","SRI",23,76,126,81,135,137,74,110,48]
["MINSA","CUSCO","CANAS-CANCHIS-ESPINAR","COMBAPATA",2392,"PITUMARCA",null,80605,"CUSCO","CANCHIS","PITUMARCA","SREx",23,76,126,81,135,137,74,110,48]
["MINSA","CUSCO","CANAS-CANCHIS-ESPINAR","COMBAPATA",2392,"PITUMARCA",null,80605,"CUSCO","CANCHIS","PITUMARCA","SRExBK(+)",0,0,0,0,0,0,0,1,0]
["MINSA","CUSCO","CANAS-CANCHIS-ESPINAR","COMBAPATA",2392,"PITUMARCA",null,80605,"CUSCO","CANCHIS","PITUMARCA","ATENCMY15A",1315,2108,1826,1753,1726,1761,1844,1769,1318]
["MINSA","CUSCO","CANAS-CANCHIS-ESPINAR","COMBAPATA",2397,"TINTA",null,80608,"CUSCO","CANCHIS","TINTA","SRI",23,15,64,46,58,50,56,24,41]
["MINSA","CUSCO","CANAS-CANCHIS-ESPINAR","COMBAPATA",2397,"TINTA",null,80608,"CUSCO","CANCHIS","TINTA","SREx",23,15,64,46,58,50,56,24,41]
["MINSA","CUSCO","CANAS-CANCHIS-ESPINAR","COMBAPATA",2397,"TINTA",null,80608,"CUSCO","CANCHIS","TINTA","SRExBK(+)",0,0,0,0,0,0,1,0,0]
["MINSA","CUSCO","CANAS-CANCHIS-ESPINAR","COMBAPATA",2397,"TINTA",null,80608,"CUSCO","CANCHIS","TINTA","ATENCMY15A",1659,1209,1263,1211,1309,1616,1894,1156,1125]
["MINSA","CUSCO","CANAS-CANCHIS-ESPINAR","EL DESCANSO",2366,"CHECCA",null,80502,"CUSCO","CANAS","CHECCA","SRI",38,21,111,32,107,164,115,129,109]
["MINSA","CUSCO","CANAS-CANCHIS-ESPINAR","EL DESCANSO",2366,"CHECCA",null,80502,"CUSCO","CANAS","CHECCA","SREx",38,21,111,32,107,164,115,129,109]
["MINSA","CUSCO","CANAS-CANCHIS-ESPINAR","EL DESCANSO",2366,"CHECCA",null,80502,"CUSCO","CANAS","CHECCA","SRExBK(+)",0,0,0,0,0,0,0,0,0]
["MINSA","CUSCO","CANAS-CANCHIS-ESPINAR","EL DESCANSO",2366,"CHECCA",null,80502,"CUSCO","CANAS","CHECCA","ATENCMY15A",886,1099,1227,1168,1710,1987,1373,1633,1806]
["MINSA","CUSCO","CANAS-CANCHIS-ESPINAR","TECHO OBRERO",2369,"LANGUI",null,80504,"CUSCO","CANAS","LANGUI","SRI",33,17,52,59,44,53,43,31,34]
["MINSA","CUSCO","CANAS-CANCHIS-ESPINAR","TECHO OBRERO",2369,"LANGUI",null,80504,"CUSCO","CANAS","LANGUI","SREx",33,17,52,59,44,53,43,31,34]
["MINSA","CUSCO","CANAS-CANCHIS-ESPINAR","TECHO OBRERO",2369,"LANGUI",null,80504,"CUSCO","CANAS","LANGUI","SRExBK(+)",0,0,0,0,0,0,0,0,0]
["MINSA","CUSCO","CANAS-CANCHIS-ESPINAR","TECHO OBRERO",2369,"LANGUI",null,80504,"CUSCO","CANAS","LANGUI","ATENCMY15A",863,529,538,560,548,569,547,434,442]
["MINSA","CUSCO","CANAS-CANCHIS-ESPINAR","TECHO OBRERO",2370,"CONDEVILUYO",null,80504,"CUSCO","CANAS","LANGUI","SRI",10,5,23,15,15,16,16,14,15]
["MINSA","CUSCO","CANAS-CANCHIS-ESPINAR","TECHO OBRERO",2370,"CONDEVILUYO",null,80504,"CUSCO","CANAS","LANGUI","SREx",10,5,23,15,15,16,16,14,15]
["MINSA","CUSCO","CANAS-CANCHIS-ESPINAR","TECHO OBRERO",2370,"CONDEVILUYO",null,80504,"CUSCO","CANAS","LANGUI","SRExBK(+)",0,0,0,0,0,0,0,0,0]
["MINSA","CUSCO","CANAS-CANCHIS-ESPINAR","TECHO OBRERO",2370,"CONDEVILUYO",null,80504,"CUSCO","CANAS","LANGUI","ATENCMY15A",307,231,232,227,198,236,299,223,224]
["MINSA","CUSCO","CANAS-CANCHIS-ESPINAR","TECHO OBRERO",2371,"LAYO",null,80505,"CUSCO","CANAS","LAYO","SRI",59,75,98,88,88,88,71,78,83]
["MINSA","CUSCO","CANAS-CANCHIS-ESPINAR","TECHO OBRERO",2371,"LAYO",null,80505,"CUSCO","CANAS","LAYO","SREx",59,75,98,88,88,88,71,78,83]
["MINSA","CUSCO","CANAS-CANCHIS-ESPINAR","TECHO OBRERO",2371,"LAYO",null,80505,"CUSCO","CANAS","LAYO","SRExBK(+)",0,0,0,0,0,0,0,0,0]
["MINSA","CUSCO","CANAS-CANCHIS-ESPINAR","TECHO OBRERO",2371,"LAYO",null,80505,"CUSCO","CANAS","LAYO","ATENCMY15A",1692,1577,1321,1493,1270,1270,1144,1514,1264]
["MINSA","CUSCO","CANAS-CANCHIS-ESPINAR","EL DESCANSO",7700,"EL DESCANSO",null,80503,"CUSCO","CANAS","KUNTURKANKI","SRI",38,56,67,62,71,83,55,null,98]
["MINSA","CUSCO","CANAS-CANCHIS-ESPINAR","EL DESCANSO",7700,"EL DESCANSO",null,80503,"CUSCO","CANAS","KUNTURKANKI","SREx",38,56,67,62,71,83,55,null,98]
["MINSA","CUSCO","CANAS-CANCHIS-ESPINAR","EL DESCANSO",7700,"EL DESCANSO",null,80503,"CUSCO","CANAS","KUNTURKANKI","SRExBK(+)",0,0,0,0,0,0,0,null,0]
["MINSA","CUSCO","CANAS-CANCHIS-ESPINAR","EL DESCANSO",7700,"EL DESCANSO",null,80503,"CUSCO","CANAS","KUNTURKANKI","ATENCMY15A",1141,1308,1003,1657,2148,1548,1950,null,1554]
["MINSA","CUSCO","CANAS-CANCHIS-ESPINAR","ESTABLECIMIENTO QUE NO PERTENECE A NINGUNA MICRORED",2378,"SICUANI",null,80601,"CUSCO","CANCHIS","SICUANI","SRI",63,51,276,236,262,252,238,269]
["MINSA","CUSCO","CANAS-CANCHIS-ESPINAR","ESTABLECIMIENTO QUE NO PERTENECE A NINGUNA MICRORED",2378,"SICUANI",null,80601,"CUSCO","CANCHIS","SICUANI","SREx",63,51,276,236,260,250,238,267]
["MINSA","CUSCO","CANAS-CANCHIS-ESPINAR","ESTABLECIMIENTO QUE NO PERTENECE A NINGUNA MICRORED",2378,"SICUANI",null,80601,"CUSCO","CANCHIS","SICUANI","SRExBK(+)",0,0,0,0,0,0,0,0]
["MINSA","CUSCO","CANAS-CANCHIS-ESPINAR","ESTABLECIMIENTO QUE NO PERTENECE A NINGUNA MICRORED",2378,"SICUANI",null,80601,"CUSCO","CANCHIS","SICUANI","ATENCMY15A",12736,7562,8298,10328,9616,10497,10461,9050]
["MINSA","CUSCO","CANAS-CANCHIS-ESPINAR","ESTABLECIMIENTO QUE NO PERTENECE A NINGUNA MICRORED",7135,"ESPINAR",null,80801,"CUSCO","ESPINAR","ESPINAR","SRI",0,3,66,3,19,16,3,19]
["MINSA","CUSCO","CANAS-CANCHIS-ESPINAR","ESTABLECIMIENTO QUE NO PERTENECE A NINGUNA MICRORED",7135,"ESPINAR",null,80801,"CUSCO","ESPINAR","ESPINAR","SREx",0,3,66,3,19,16,3,19]
["MINSA","CUSCO","CANAS-CANCHIS-ESPINAR","ESTABLECIMIENTO QUE NO PERTENECE A NINGUNA MICRORED",7135,"ESPINAR",null,80801,"CUSCO","ESPINAR","ESPINAR","SRExBK(+)",0,0,0,0,0,0,0,0]
["MINSA","CUSCO","CANAS-CANCHIS-ESPINAR","ESTABLECIMIENTO QUE NO PERTENECE A NINGUNA MICRORED",7135,"ESPINAR",null,80801,"CUSCO","ESPINAR","ESPINAR","ATENCMY15A",4915,3870,5127,5437,5102,3546,2974,3387]
["MINSA","CUSCO","CANAS-CANCHIS-ESPINAR","PAMPAPHALLA",2381,"QUEHUAR",null,80601,"CUSCO","CANCHIS","SICUANI","SRI",24,29,21,27,51,31,34,39]
["MINSA","CUSCO","CANAS-CANCHIS-ESPINAR","PAMPAPHALLA",2381,"QUEHUAR",null,80601,"CUSCO","CANCHIS","SICUANI","SREx",24,29,21,27,51,31,34,39]
["MINSA","CUSCO","CANAS-CANCHIS-ESPINAR","PAMPAPHALLA",2381,"QUEHUAR",null,80601,"CUSCO","CANCHIS","SICUANI","SRExBK(+)",0,0,0,0,0,0,0,0]
["MINSA","CUSCO","CANAS-CANCHIS-ESPINAR","PAMPAPHALLA",2381,"QUEHUAR",null,80601,"CUSCO","CANCHIS","SICUANI","ATENCMY15A",714,590,645,506,725,1038,584,680]
["MINSA","CUSCO","CANAS-CANCHIS-ESPINAR","PAMPAPHALLA",2382,"UZCUPATA",null,80601,"CUSCO","CANCHIS","SICUANI","SRI",19,15,27,15,26,43,22,36,33]
["MINSA","CUSCO","CANAS-CANCHIS-ESPINAR","PAMPAPHALLA",2382,"UZCUPATA",null,80601,"CUSCO","CANCHIS","SICUANI","SREx",19,15,27,15,26,43,22,36,33]
["MINSA","CUSCO","CANAS-CANCHIS-ESPINAR","PAMPAPHALLA",2382,"UZCUPATA",null,80601,"CUSCO","CANCHIS","SICUANI","SRExBK(+)",0,0,0,0,0,0,0,0,0]
["MINSA","CUSCO","CANAS-CANCHIS-ESPINAR","PAMPAPHALLA",2382,"UZCUPATA",null,80601,"CUSCO","CANCHIS","SICUANI","ATENCMY15A",309,450,481,326,425,758,421,562,408]
["MINSA","CUSCO","CANAS-CANCHIS-ESPINAR","PAMPAPHALLA",2383,"LA FLORIDA",null,80601,"CUSCO","CANCHIS","SICUANI","SRI",45,40,83,80,74,80,96,102,88]
["MINSA","CUSCO","CANAS-CANCHIS-ESPINAR","PAMPAPHALLA",2383,"LA FLORIDA",null,80601,"CUSCO","CANCHIS","SICUANI","SREx",45,40,83,80,74,80,96,102,88]
["MINSA","CUSCO","CANAS-CANCHIS-ESPINAR","PAMPAPHALLA",2383,"LA FLORIDA",null,80601,"CUSCO","CANCHIS","SICUANI","SRExBK(+)",0,0,0,0,0,0,0,0,0]
["MINSA","CUSCO","CANAS-CANCHIS-ESPINAR","PAMPAPHALLA",2383,"LA FLORIDA",null,80601,"CUSCO","CANCHIS","SICUANI","ATENCMY15A",973,780,797,779,901,1030,901,1082,730]
["MINSA","CUSCO","CANAS-CANCHIS-ESPINAR","PAMPAPHALLA",2384,"PAMPAPHALLA",null,80601,"CUSCO","CANCHIS","SICUANI","SRI",68,124,178,213,184,228,359,239,128]
["MINSA","CUSCO","CANAS-CANCHIS-ESPINAR","PAMPAPHALLA",2384,"PAMPAPHALLA",null,80601,"CUSCO","CANCHIS","SICUANI","SREx",68,124,178,213,184,228,359,239,128]
["MINSA","CUSCO","CANAS-CANCHIS-ESPINAR","PAMPAPHALLA",2384,"PAMPAPHALLA",null,80601,"CUSCO","CANCHIS","SICUANI","SRExBK(+)",0,1,0,0,0,0,0,0,0]
["MINSA","CUSCO","CANAS-CANCHIS-ESPINAR","PAMPAPHALLA",2384,"PAMPAPHALLA",null,80601,"CUSCO","CANCHIS","SICUANI","ATENCMY15A",4257,3087,3534,3597,4819,6017,6220,3370,3411]
["MINSA","CUSCO","CANAS-CANCHIS-ESPINAR","PAMPAPHALLA",2393,"PHINAYA",null,80605,"CUSCO","CANCHIS","PITUMARCA","SRI",14,20,15,21,21,18,17,15,4]
["MINSA","CUSCO","CANAS-CANCHIS-ESPINAR","PAMPAPHALLA",2393,"PHINAYA",null,80605,"CUSCO","CANCHIS","PITUMARCA","SREx",14,20,15,21,21,18,17,15,4]
["MINSA","CUSCO","CANAS-CANCHIS-ESPINAR","PAMPAPHALLA",2393,"PHINAYA",null,80605,"CUSCO","CANCHIS","PITUMARCA","SRExBK(+)",0,0,0,0,0,0,0,0,0]
["MINSA","CUSCO","CANAS-CANCHIS-ESPINAR","PAMPAPHALLA",2393,"PHINAYA",null,80605,"CUSCO","CANCHIS","PITUMARCA","ATENCMY15A",263,147,171,179,302,288,199,258,222]
["MINSA","CUSCO","CANAS-CANCHIS-ESPINAR","PAMPAPHALLA",2394,"SAN PABLO CANCHIS",null,80606,"CUSCO","CANCHIS","SAN PABLO","SRI",21,64,78,43,35,53,43,42,30]
["MINSA","CUSCO","CANAS-CANCHIS-ESPINAR","PAMPAPHALLA",2394,"SAN PABLO CANCHIS",null,80606,"CUSCO","CANCHIS","SAN PABLO","SREx",21,64,78,43,35,53,43,42,30]
["MINSA","CUSCO","CANAS-CANCHIS-ESPINAR","PAMPAPHALLA",2394,"SAN PABLO CANCHIS",null,80606,"CUSCO","CANCHIS","SAN PABLO","SRExBK(+)",0,0,0,0,1,1,0,0,0]
["MINSA","CUSCO","CANAS-CANCHIS-ESPINAR","PAMPAPHALLA",2394,"SAN PABLO CANCHIS",null,80606,"CUSCO","CANCHIS","SAN PABLO","ATENCMY15A",696,752,789,577,1031,1266,1150,644,638]
["MINSA","CUSCO","CANAS-CANCHIS-ESPINAR","PAMPAPHALLA",2395,"SANTA BARBARA",null,80606,"CUSCO","CANCHIS","SAN PABLO","SRI",27,26,74,26,37,27,19,36]
["MINSA","CUSCO","CANAS-CANCHIS-ESPINAR","PAMPAPHALLA",2395,"SANTA BARBARA",null,80606,"CUSCO","CANCHIS","SAN PABLO","SREx",27,26,74,26,37,27,19,36]
["MINSA","CUSCO","CANAS-CANCHIS-ESPINAR","PAMPAPHALLA",2395,"SANTA BARBARA",null,80606,"CUSCO","CANCHIS","SAN PABLO","SRExBK(+)",0,0,0,0,1,0,0,0]
["MINSA","CUSCO","CANAS-CANCHIS-ESPINAR","PAMPAPHALLA",2395,"SANTA BARBARA",null,80606,"CUSCO","CANCHIS","SAN PABLO","ATENCMY15A",424,463,789,351,410,423,487,545]
["MINSA","CUSCO","CANAS-CANCHIS-ESPINAR","PAMPAPHALLA",2396,"SAN PEDRO CANCHIS",null,80607,"CUSCO","CANCHIS","SAN PEDRO","SRI",10,27,32,102,58,54,41,18,24]
["MINSA","CUSCO","CANAS-CANCHIS-ESPINAR","PAMPAPHALLA",2396,"SAN PEDRO CANCHIS",null,80607,"CUSCO","CANCHIS","SAN PEDRO","SREx",10,27,32,102,58,54,41,18,24]
["MINSA","CUSCO","CANAS-CANCHIS-ESPINAR","PAMPAPHALLA",2396,"SAN PEDRO CANCHIS",null,80607,"CUSCO","CANCHIS","SAN PEDRO","SRExBK(+)",0,0,0,0,0,0,0,0,0]
["MINSA","CUSCO","CANAS-CANCHIS-ESPINAR","PAMPAPHALLA",2396,"SAN PEDRO CANCHIS",null,80607,"CUSCO","CANCHIS","SAN PEDRO","ATENCMY15A",927,726,918,901,1071,879,557,810,858]
["MINSA","CUSCO","CANAS-CANCHIS-ESPINAR","TECHO OBRERO",2379,"HERCCA",null,80601,"CUSCO","CANCHIS","SICUANI","SRI",25,25,29,21,16,25,24,13,25]
["MINSA","CUSCO","CANAS-CANCHIS-ESPINAR","TECHO OBRERO",2379,"HERCCA",null,80601,"CUSCO","CANCHIS","SICUANI","SREx",25,25,29,21,16,25,24,13,25]
["MINSA","CUSCO","CANAS-CANCHIS-ESPINAR","TECHO OBRERO",2379,"HERCCA",null,80601,"CUSCO","CANCHIS","SICUANI","SRExBK(+)",0,0,0,0,0,0,0,0,0]
["MINSA","CUSCO","CANAS-CANCHIS-ESPINAR","TECHO OBRERO",2379,"HERCCA",null,80601,"CUSCO","CANCHIS","SICUANI","ATENCMY15A",499,469,413,323,375,350,384,278,312]
["MINSA","CUSCO","CANAS-CANCHIS-ESPINAR","TECHO OBRERO",2380,"TECHO OBRERO",null,80601,"CUSCO","CANCHIS","SICUANI","SRI",69,64,252,216,278,239,242,227,305]
["MINSA","CUSCO","CANAS-CANCHIS-ESPINAR","TECHO OBRERO",2380,"TECHO OBRERO",null,80601,"CUSCO","CANCHIS","SICUANI","SREx",69,64,252,216,278,239,242,227,305]
["MINSA","CUSCO","CANAS-CANCHIS-ESPINAR","TECHO OBRERO",2380,"TECHO OBRERO",null,80601,"CUSCO","CANCHIS","SICUANI","SRExBK(+)",0,0,0,0,0,0,0,0,0]
["MINSA","CUSCO","CANAS-CANCHIS-ESPINAR","TECHO OBRERO",2380,"TECHO OBRERO",null,80601,"CUSCO","CANCHIS","SICUANI","ATENCMY15A",3715,3674,4284,4255,5482,5218,6965,5773,3991]
["MINSA","CUSCO","CANAS-CANCHIS-ESPINAR","TECHO OBRERO",2388,"MARANGANI",null,80604,"CUSCO","CANCHIS","MARANGANI","SRI",84,119,103,87,80,72,86,82,102]
["MINSA","CUSCO","CANAS-CANCHIS-ESPINAR","TECHO OBRERO",2388,"MARANGANI",null,80604,"CUSCO","CANCHIS","MARANGANI","SREx",84,119,103,87,80,72,86,82,102]
["MINSA","CUSCO","CANAS-CANCHIS-ESPINAR","TECHO OBRERO",2388,"MARANGANI",null,80604,"CUSCO","CANCHIS","MARANGANI","SRExBK(+)",0,0,0,0,0,0,0,0,0]
["MINSA","CUSCO","CANAS-CANCHIS-ESPINAR","TECHO OBRERO",2388,"MARANGANI",null,80604,"CUSCO","CANCHIS","MARANGANI","ATENCMY15A",1531,1408,1583,1403,942,1488,1515,1775,1618]
["MINSA","CUSCO","CANAS-CANCHIS-ESPINAR","TECHO OBRERO",2389,"CHECTUYOC",null,80604,"CUSCO","CANCHIS","MARANGANI","SRI",6,16,34,10,22,19,11,10,22]
["MINSA","CUSCO","CANAS-CANCHIS-ESPINAR","TECHO OBRERO",2389,"CHECTUYOC",null,80604,"CUSCO","CANCHIS","MARANGANI","SREx",6,16,34,10,22,19,11,10,22]
["MINSA","CUSCO","CANAS-CANCHIS-ESPINAR","TECHO OBRERO",2389,"CHECTUYOC",null,80604,"CUSCO","CANCHIS","MARANGANI","SRExBK(+)",0,0,0,0,0,0,0,0,0]
["MINSA","CUSCO","CANAS-CANCHIS-ESPINAR","TECHO OBRERO",2389,"CHECTUYOC",null,80604,"CUSCO","CANCHIS","MARANGANI","ATENCMY15A",416,407,417,194,252,297,232,404,335]
["MINSA","CUSCO","CANAS-CANCHIS-ESPINAR","TECHO OBRERO",2390,"CCUYO",null,80604,"CUSCO","CANCHIS","MARANGANI","SRI",20,27,25,20,20,27,26,24,27]
["MINSA","CUSCO","CANAS-CANCHIS-ESPINAR","TECHO OBRERO",2390,"CCUYO",null,80604,"CUSCO","CANCHIS","MARANGANI","SREx",20,27,25,20,20,27,26,24,27]
["MINSA","CUSCO","CANAS-CANCHIS-ESPINAR","TECHO OBRERO",2390,"CCUYO",null,80604,"CUSCO","CANCHIS","MARANGANI","SRExBK(+)",0,0,0,0,0,0,0,0,0]
["MINSA","CUSCO","CANAS-CANCHIS-ESPINAR","TECHO OBRERO",2390,"CCUYO",null,80604,"CUSCO","CANCHIS","MARANGANI","ATENCMY15A",485,463,331,286,322,477,385,378,299]
["MINSA","CUSCO","CANAS-CANCHIS-ESPINAR","TECHO OBRERO",2391,"OCCOBAMBA MARANGANI",null,80604,"CUSCO","CANCHIS","MARANGANI","SRI",18,17,53,39,20,32,33,30,39]
["MINSA","CUSCO","CANAS-CANCHIS-ESPINAR","TECHO OBRERO",2391,"OCCOBAMBA MARANGANI",null,80604,"CUSCO","CANCHIS","MARANGANI","SREx",18,17,53,39,20,32,33,30,39]
["MINSA","CUSCO","CANAS-CANCHIS-ESPINAR","TECHO OBRERO",2391,"OCCOBAMBA MARANGANI",null,80604,"CUSCO","CANCHIS","MARANGANI","SRExBK(+)",0,0,0,0,0,0,0,0,39]
["MINSA","CUSCO","CANAS-CANCHIS-ESPINAR","TECHO OBRERO",2391,"OCCOBAMBA MARANGANI",null,80604,"CUSCO","CANCHIS","MARANGANI","ATENCMY15A",875,642,756,616,322,839,432,709,850]
["MINSA","CUSCO","CANAS-CANCHIS-ESPINAR","YANAOCA",2364,"YANAOCA",null,80501,"CUSCO","CANAS","YANAOCA","SRI",7,7,169,58,98,155,99,146]
["MINSA","CUSCO","CANAS-CANCHIS-ESPINAR","YANAOCA",2364,"YANAOCA",null,80501,"CUSCO","CANAS","YANAOCA","SREx",7,7,169,58,98,155,99,146]
["MINSA","CUSCO","CANAS-CANCHIS-ESPINAR","YANAOCA",2364,"YANAOCA",null,80501,"CUSCO","CANAS","YANAOCA","SRExBK(+)",0,0,0,0,0,0,0,0]
["MINSA","CUSCO","CANAS-CANCHIS-ESPINAR","YANAOCA",2364,"YANAOCA",null,80501,"CUSCO","CANAS","YANAOCA","ATENCMY15A",2617,2408,4179,2370,2322,2630,2592,2915]
["MINSA","CUSCO","CANAS-CANCHIS-ESPINAR","YANAOCA",2365,"PONGOÑA",null,80501,"CUSCO","CANAS","YANAOCA","SRI",0,4,27,1,36,32,15,18]
["MINSA","CUSCO","CANAS-CANCHIS-ESPINAR","YANAOCA",2365,"PONGOÑA",null,80501,"CUSCO","CANAS","YANAOCA","SREx",0,4,27,1,36,32,15,18]
["MINSA","CUSCO","CANAS-CANCHIS-ESPINAR","YANAOCA",2365,"PONGOÑA",null,80501,"CUSCO","CANAS","YANAOCA","SRExBK(+)",0,0,1,0,0,0,0,0]
["MINSA","CUSCO","CANAS-CANCHIS-ESPINAR","YANAOCA",2365,"PONGOÑA",null,80501,"CUSCO","CANAS","YANAOCA","ATENCMY15A",281,402,300,272,205,237,209,140]
["MINSA","CUSCO","CANAS-CANCHIS-ESPINAR","EL DESCANSO",2367,"CHITIBAMBA",null,80502,"CUSCO","CANAS","CHECCA","SRI",19,13,19,14,17,23,10,29,4]
["MINSA","CUSCO","CANAS-CANCHIS-ESPINAR","EL DESCANSO",2367,"CHITIBAMBA",null,80502,"CUSCO","CANAS","CHECCA","SREx",19,13,19,14,17,23,10,29,4]
["MINSA","CUSCO","CANAS-CANCHIS-ESPINAR","EL DESCANSO",2367,"CHITIBAMBA",null,80502,"CUSCO","CANAS","CHECCA","SRExBK(+)",0,0,0,0,0,0,0,0,0]
["MINSA","CUSCO","CANAS-CANCHIS-ESPINAR","EL DESCANSO",2367,"CHITIBAMBA",null,80502,"CUSCO","CANAS","CHECCA","ATENCMY15A",116,232,216,128,294,425,377,231,149]
["MINSA","CUSCO","CANAS-CANCHIS-ESPINAR","YANAOCA",2372,"PAMPAMARCA",null,80506,"CUSCO","CANAS","PAMPAMARCA","SRI",0,1,5,6,2,44,0,26]
["MINSA","CUSCO","CANAS-CANCHIS-ESPINAR","YANAOCA",2372,"PAMPAMARCA",null,80506,"CUSCO","CANAS","PAMPAMARCA","SREx",0,1,5,6,2,44,0,26]
["MINSA","CUSCO","CANAS-CANCHIS-ESPINAR","YANAOCA",2372,"PAMPAMARCA",null,80506,"CUSCO","CANAS","PAMPAMARCA","SRExBK(+)",0,0,0,0,0,0,0,0]
["MINSA","CUSCO","CANAS-CANCHIS-ESPINAR","YANAOCA",2372,"PAMPAMARCA",null,80506,"CUSCO","CANAS","PAMPAMARCA","ATENCMY15A",532,629,414,429,415,571,442,467]
["MINSA","CUSCO","CANAS-CANCHIS-ESPINAR","YANAOCA",2373,"QUEHUE",null,80507,"CUSCO","CANAS","QUEHUE","SRI",1,12,13,3,16,68,44,51]
["MINSA","CUSCO","CANAS-CANCHIS-ESPINAR","YANAOCA",2373,"QUEHUE",null,80507,"CUSCO","CANAS","QUEHUE","SREx",1,12,13,3,16,68,44,51]
["MINSA","CUSCO","CANAS-CANCHIS-ESPINAR","YANAOCA",2373,"QUEHUE",null,80507,"CUSCO","CANAS","QUEHUE","SRExBK(+)",0,0,0,0,0,0,0,0]
["MINSA","CUSCO","CANAS-CANCHIS-ESPINAR","YANAOCA",2373,"QUEHUE",null,80507,"CUSCO","CANAS","QUEHUE","ATENCMY15A",648,537,429,403,403,1024,380,701]
["MINSA","CUSCO","CANAS-CANCHIS-ESPINAR","YANAOCA",2374,"HUINCHIRI",null,80507,"CUSCO","CANAS","QUEHUE","SRI",0,1,15,0,7,18,19,0]
["MINSA","CUSCO","CANAS-CANCHIS-ESPINAR","YANAOCA",2374,"HUINCHIRI",null,80507,"CUSCO","CANAS","QUEHUE","SREx",0,1,15,0,7,18,19,0]
["MINSA","CUSCO","CANAS-CANCHIS-ESPINAR","YANAOCA",2374,"HUINCHIRI",null,80507,"CUSCO","CANAS","QUEHUE","SRExBK(+)",0,0,0,0,0,0,0,0]
["MINSA","CUSCO","CANAS-CANCHIS-ESPINAR","YANAOCA",2374,"HUINCHIRI",null,80507,"CUSCO","CANAS","QUEHUE","ATENCMY15A",191,393,401,167,210,268,198,272]
["MINSA","CUSCO","CANAS-CANCHIS-ESPINAR","YANAOCA",2375,"SURIMANA",null,80508,"CUSCO","CANAS","TUPAC AMARU","SRI",7,9,11,9,12,42,27,28]
["MINSA","CUSCO","CANAS-CANCHIS-ESPINAR","YANAOCA",2375,"SURIMANA",null,80508,"CUSCO","CANAS","TUPAC AMARU","SREx",7,9,11,9,12,42,27,28]
["MINSA","CUSCO","CANAS-CANCHIS-ESPINAR","YANAOCA",2375,"SURIMANA",null,80508,"CUSCO","CANAS","TUPAC AMARU","SRExBK(+)",0,0,0,0,0,0,0,0]
["MINSA","CUSCO","CANAS-CANCHIS-ESPINAR","YANAOCA",2375,"SURIMANA",null,80508,"CUSCO","CANAS","TUPAC AMARU","ATENCMY15A",496,386,383,316,251,590,263,339]
["MINSA","CUSCO","CANAS-CANCHIS-ESPINAR","YANAOCA",2376,"TUNGASUCA",null,80508,"CUSCO","CANAS","TUPAC AMARU","SRI",7,2,9,6,15,50,12]
["MINSA","CUSCO","CANAS-CANCHIS-ESPINAR","YANAOCA",2376,"TUNGASUCA",null,80508,"CUSCO","CANAS","TUPAC AMARU","SREx",7,2,9,6,15,50,12]
["MINSA","CUSCO","CANAS-CANCHIS-ESPINAR","YANAOCA",2376,"TUNGASUCA",null,80508,"CUSCO","CANAS","TUPAC AMARU","SRExBK(+)",0,0,0,0,0,0,0]
["MINSA","CUSCO","CANAS-CANCHIS-ESPINAR","YANAOCA",2376,"TUNGASUCA",null,80508,"CUSCO","CANAS","TUPAC AMARU","ATENCMY15A",578,455,736,537,457,1041,548]
["MINSA","CUSCO","CANAS-CANCHIS-ESPINAR","YANAOCA",2377,"TOCCOCCORI",null,80508,"CUSCO","CANAS","TUPAC AMARU","SRI",3,9,7,11,21,19,23,24]
["MINSA","CUSCO","CANAS-CANCHIS-ESPINAR","YANAOCA",2377,"TOCCOCCORI",null,80508,"CUSCO","CANAS","TUPAC AMARU","SREx",3,9,7,11,21,19,23,24]
["MINSA","CUSCO","CANAS-CANCHIS-ESPINAR","YANAOCA",2377,"TOCCOCCORI",null,80508,"CUSCO","CANAS","TUPAC AMARU","SRExBK(+)",0,0,0,0,0,0,0,0]
["MINSA","CUSCO","CANAS-CANCHIS-ESPINAR","YANAOCA",2377,"TOCCOCCORI",null,80508,"CUSCO","CANAS","TUPAC AMARU","ATENCMY15A",195,244,229,187,196,242,315,268]
["MINSA","CUSCO","CANAS-CANCHIS-ESPINAR","YANAOCA",18241,"HAMPATURA",null,80501,"CUSCO","CANAS","YANAOCA","SRI",0,6,3,0,0,45,9,22]
["MINSA","CUSCO","CANAS-CANCHIS-ESPINAR","YANAOCA",18241,"HAMPATURA",null,80501,"CUSCO","CANAS","YANAOCA","SREx",0,6,3,0,0,45,9,22]
["MINSA","CUSCO","CANAS-CANCHIS-ESPINAR","YANAOCA",18241,"HAMPATURA",null,80501,"CUSCO","CANAS","YANAOCA","SRExBK(+)",0,0,0,0,0,0,0,0]
["MINSA","CUSCO","CANAS-CANCHIS-ESPINAR","YANAOCA",18241,"HAMPATURA",null,80501,"CUSCO","CANAS","YANAOCA","ATENCMY15A",243,321,339,239,286,313,471,364]
["MINSA","CUSCO","CANAS-CANCHIS-ESPINAR","YAURI",2410,"YAURI",null,80801,"CUSCO","ESPINAR","ESPINAR","SRI",51,48,234,159,78,90,96,146,143]
["MINSA","CUSCO","CANAS-CANCHIS-ESPINAR","YAURI",2410,"YAURI",null,80801,"CUSCO","ESPINAR","ESPINAR","SREx",51,48,234,159,78,90,96,146,143]
["MINSA","CUSCO","CANAS-CANCHIS-ESPINAR","YAURI",2410,"YAURI",null,80801,"CUSCO","ESPINAR","ESPINAR","SRExBK(+)",0,0,0,0,0,0,0,0,0]
["MINSA","CUSCO","CANAS-CANCHIS-ESPINAR","YAURI",2410,"YAURI",null,80801,"CUSCO","ESPINAR","ESPINAR","ATENCMY15A",4418,4961,5061,5531,5203,3474,4293,4793,4693]
["MINSA","CUSCO","CANAS-CANCHIS-ESPINAR","YAURI",2411,"CONDOROMA",null,80802,"CUSCO","ESPINAR","CONDOROMA","SRI",10,15,15,14,20,8,14,9,8]
["MINSA","CUSCO","CANAS-CANCHIS-ESPINAR","YAURI",2411,"CONDOROMA",null,80802,"CUSCO","ESPINAR","CONDOROMA","SREx",10,15,15,14,20,8,14,9,8]
["MINSA","CUSCO","CANAS-CANCHIS-ESPINAR","YAURI",2411,"CONDOROMA",null,80802,"CUSCO","ESPINAR","CONDOROMA","SRExBK(+)",0,0,0,0,0,0,0,0,1]
["MINSA","CUSCO","CANAS-CANCHIS-ESPINAR","YAURI",2411,"CONDOROMA",null,80802,"CUSCO","ESPINAR","CONDOROMA","ATENCMY15A",236,426,331,241,253,239,328,170,217]
["MINSA","CUSCO","CANAS-CANCHIS-ESPINAR","YAURI",2412,"COPORAQUE",null,80803,"CUSCO","ESPINAR","COPORAQUE","SRI",20,13,23,14,15,11,15,16,13]
["MINSA","CUSCO","CANAS-CANCHIS-ESPINAR","YAURI",2412,"COPORAQUE",null,80803,"CUSCO","ESPINAR","COPORAQUE","SREx",20,13,23,14,15,11,15,16,13]
["MINSA","CUSCO","CANAS-CANCHIS-ESPINAR","YAURI",2412,"COPORAQUE",null,80803,"CUSCO","ESPINAR","COPORAQUE","SRExBK(+)",0,0,0,0,0,0,0,0,0]
["MINSA","CUSCO","CANAS-CANCHIS-ESPINAR","YAURI",2412,"COPORAQUE",null,80803,"CUSCO","ESPINAR","COPORAQUE","ATENCMY15A",879,1408,961,929,610,794,714,670,739]
["MINSA","CUSCO","CANAS-CANCHIS-ESPINAR","YAURI",2413,"URINSAYA",null,80803,"CUSCO","ESPINAR","COPORAQUE","SRI",19,23,41,25,81,34,33,64,31]
["MINSA","CUSCO","CANAS-CANCHIS-ESPINAR","YAURI",2413,"URINSAYA",null,80803,"CUSCO","ESPINAR","COPORAQUE","SREx",19,23,41,25,81,34,33,64,31]
["MINSA","CUSCO","CANAS-CANCHIS-ESPINAR","YAURI",2413,"URINSAYA",null,80803,"CUSCO","ESPINAR","COPORAQUE","SRExBK(+)",0,0,0,0,0,0,0,0,0]
["MINSA","CUSCO","CANAS-CANCHIS-ESPINAR","YAURI",2413,"URINSAYA",null,80803,"CUSCO","ESPINAR","COPORAQUE","ATENCMY15A",353,818,646,615,651,1195,721,790,591]
["MINSA","CUSCO","CANAS-CANCHIS-ESPINAR","YAURI",2414,"HUAYHUAHUASI",null,80803,"CUSCO","ESPINAR","COPORAQUE","SRI",14,13,27,5,27,74,17,26,10]
["MINSA","CUSCO","CANAS-CANCHIS-ESPINAR","YAURI",2414,"HUAYHUAHUASI",null,80803,"CUSCO","ESPINAR","COPORAQUE","SREx",14,13,27,5,27,74,17,26,10]
["MINSA","CUSCO","CANAS-CANCHIS-ESPINAR","YAURI",2414,"HUAYHUAHUASI",null,80803,"CUSCO","ESPINAR","COPORAQUE","SRExBK(+)",0,0,0,0,0,0,0,0,0]
["MINSA","CUSCO","CANAS-CANCHIS-ESPINAR","YAURI",2414,"HUAYHUAHUASI",null,80803,"CUSCO","ESPINAR","COPORAQUE","ATENCMY15A",278,448,410,615,475,694,339,550,384]
["MINSA","CUSCO","CANAS-CANCHIS-ESPINAR","YAURI",2415,"OCCORURO",null,80804,"CUSCO","ESPINAR","OCORURO","SRI",15,13,20,14,9,15,8,16,25]
["MINSA","CUSCO","CANAS-CANCHIS-ESPINAR","YAURI",2415,"OCCORURO",null,80804,"CUSCO","ESPINAR","OCORURO","SREx",15,13,20,14,9,15,8,16,25]
["MINSA","CUSCO","CANAS-CANCHIS-ESPINAR","YAURI",2415,"OCCORURO",null,80804,"CUSCO","ESPINAR","OCORURO","SRExBK(+)",0,0,0,0,0,0,0,0,0]
["MINSA","CUSCO","CANAS-CANCHIS-ESPINAR","YAURI",2415,"OCCORURO",null,80804,"CUSCO","ESPINAR","OCORURO","ATENCMY15A",368,324,407,232,201,278,261,293,264]
["MINSA","CUSCO","CANAS-CANCHIS-ESPINAR","YAURI",2416,"PALLPATA",null,80805,"CUSCO","ESPINAR","PALLPATA","SRI",11,20,29,29,58,50,14,26,53]
["MINSA","CUSCO","CANAS-CANCHIS-ESPINAR","YAURI",2416,"PALLPATA",null,80805,"CUSCO","ESPINAR","PALLPATA","SREx",11,20,29,29,58,50,14,26,53]
["MINSA","CUSCO","CANAS-CANCHIS-ESPINAR","YAURI",2416,"PALLPATA",null,80805,"CUSCO","ESPINAR","PALLPATA","SRExBK(+)",0,0,0,0,0,0,0,0,0]
["MINSA","CUSCO","CANAS-CANCHIS-ESPINAR","YAURI",2416,"PALLPATA",null,80805,"CUSCO","ESPINAR","PALLPATA","ATENCMY15A",1392,1395,1087,1083,968,1084,1504,1024,2290]
["MINSA","CUSCO","CANAS-CANCHIS-ESPINAR","YAURI",2417,"PICHIGUA ESPINAR",null,80806,"CUSCO","ESPINAR","PICHIGUA","SRI",0,33,50,32,47,30,35,50,19]
["MINSA","CUSCO","CANAS-CANCHIS-ESPINAR","YAURI",2417,"PICHIGUA ESPINAR",null,80806,"CUSCO","ESPINAR","PICHIGUA","SREx",0,33,50,32,47,30,35,50,19]
["MINSA","CUSCO","CANAS-CANCHIS-ESPINAR","YAURI",2417,"PICHIGUA ESPINAR",null,80806,"CUSCO","ESPINAR","PICHIGUA","SRExBK(+)",0,0,0,0,0,0,0,0,0]
["MINSA","CUSCO","CANAS-CANCHIS-ESPINAR","YAURI",2417,"PICHIGUA ESPINAR",null,80806,"CUSCO","ESPINAR","PICHIGUA","ATENCMY15A",513,685,613,460,735,606,1117,521,474]
["MINSA","CUSCO","CANAS-CANCHIS-ESPINAR","YAURI",2418,"SAN MIGUEL",null,80806,"CUSCO","ESPINAR","PICHIGUA","SRI",10,25,41,21,10,50,24,24,31]
["MINSA","CUSCO","CANAS-CANCHIS-ESPINAR","YAURI",2418,"SAN MIGUEL",null,80806,"CUSCO","ESPINAR","PICHIGUA","SREx",10,25,41,21,10,50,24,24,31]
["MINSA","CUSCO","CANAS-CANCHIS-ESPINAR","YAURI",2418,"SAN MIGUEL",null,80806,"CUSCO","ESPINAR","PICHIGUA","SRExBK(+)",0,0,0,0,0,0,0,0,0]
["MINSA","CUSCO","CANAS-CANCHIS-ESPINAR","YAURI",2418,"SAN MIGUEL",null,80806,"CUSCO","ESPINAR","PICHIGUA","ATENCMY15A",358,264,344,167,182,396,342,314,317]
["MINSA","CUSCO","CANAS-CANCHIS-ESPINAR","YAURI",2419,"SUYKUTAMBO",null,80807,"CUSCO","ESPINAR","SUYCKUTAMBO","SRI",33,18,106,56,48,56,47,64,33]
["MINSA","CUSCO","CANAS-CANCHIS-ESPINAR","YAURI",2419,"SUYKUTAMBO",null,80807,"CUSCO","ESPINAR","SUYCKUTAMBO","SREx",33,18,106,56,48,56,47,64,33]
["MINSA","CUSCO","CANAS-CANCHIS-ESPINAR","YAURI",2419,"SUYKUTAMBO",null,80807,"CUSCO","ESPINAR","SUYCKUTAMBO","SRExBK(+)",0,0,0,0,0,0,0,0,0]
["MINSA","CUSCO","CANAS-CANCHIS-ESPINAR","YAURI",2419,"SUYKUTAMBO",null,80807,"CUSCO","ESPINAR","SUYCKUTAMBO","ATENCMY15A",691,713,731,673,715,575,799,868,818]
["MINSA","CUSCO","CANAS-CANCHIS-ESPINAR","YAURI",2420,"ACCOCUNCA",null,80808,"CUSCO","ESPINAR","ALTO PICHIGUA","SRI",13,18,1,4,28,12,14,16,20]
["MINSA","CUSCO","CANAS-CANCHIS-ESPINAR","YAURI",2420,"ACCOCUNCA",null,80808,"CUSCO","ESPINAR","ALTO PICHIGUA","SREx",13,18,1,4,28,12,14,16,20]
["MINSA","CUSCO","CANAS-CANCHIS-ESPINAR","YAURI",2420,"ACCOCUNCA",null,80808,"CUSCO","ESPINAR","ALTO PICHIGUA","SRExBK(+)",0,0,0,0,0,0,1,0,0]
["MINSA","CUSCO","CANAS-CANCHIS-ESPINAR","YAURI",2420,"ACCOCUNCA",null,80808,"CUSCO","ESPINAR","ALTO PICHIGUA","ATENCMY15A",402,449,322,673,429,463,331,616,598]
["MINSA","CUSCO","CANAS-CANCHIS-ESPINAR","YAURI",6745,"TINTAYA MARQUIRI",null,80801,"CUSCO","ESPINAR","ESPINAR","SRI",6,21,19,9,7,11,5,47,10]
["MINSA","CUSCO","CANAS-CANCHIS-ESPINAR","YAURI",6745,"TINTAYA MARQUIRI",null,80801,"CUSCO","ESPINAR","ESPINAR","SREx",6,21,19,9,7,11,5,47,10]
["MINSA","CUSCO","CANAS-CANCHIS-ESPINAR","YAURI",6745,"TINTAYA MARQUIRI",null,80801,"CUSCO","ESPINAR","ESPINAR","SRExBK(+)",0,0,0,0,0,0,0,0,0]
["MINSA","CUSCO","CANAS-CANCHIS-ESPINAR","YAURI",6745,"TINTAYA MARQUIRI",null,80801,"CUSCO","ESPINAR","ESPINAR","ATENCMY15A",306,578,369,237,388,427,280,494,440]